Workbook

Sheet HOME
F1: API LNAPL Transmissivity Workbook
F2: Calculation of LNAPL Transmissivity from Baildown Test Data
B4: STEP 1: RESET OUTPUT SUMMARY
G6: STEP 4: LNAPL TRANSMISSIVITY SUMMARY
B11: STEP 2: ENTER DATA & VIEW FIGURES
B12: STEP 3: CHOOSE WELL CONDITIONS | I12: Mean LNAPL Transmissivity (ft2/d)
I13: 2.992245834
I16: Standard Deviation (ft2/d)
I17: 0.4827029355
I20: Coefficient of Variation
I21: 0.1613179405

Sheet Data
A1: Well Designation: | B1: MW16
A2: Date: | B2: 2021-11-09
A4: Ground Surface Elev (ft msl) | B4: 100.5 | C4: Enter These Data | E4: Drawdown
A5: Top of Casing Elev (ft msl) | B5: 100.31 | E5: Adjustment
A6: Well Casing Radius, rc (ft): | B6: 0.083 | C6: re1 | E6: (ft)
A7: Well Radius, rw (ft): | B7: 0.167 | E7: =Figures!C28 -> 0
A8: LNAPL Specific Yield, Sy: | B8: 0.175
A9: LNAPL Density Ratio, rr: | B9: 0.78
A10: Top of Screen (ft bgs): | B10: 30.7
A11: Bottom of Screen (ft bgs): | B11: 40.7
A12: LNAPL Baildown Vol. (gal.): | B12: 0.48
A13: Effective Radius, re3 (ft): | B13: =SQRT(B8*(B7^2-B6^2)+B6^2) -> 0.1027813213 | C13: Calculated Parameters
A14: Effective Radius, re2 (ft): | B14: =SQRT(-Figures!U27*B6^2+(Figures!U27+1)*B13^2) -> 
A15: Initial Casing LNAPL Vol. (gal.): | B15: =PI()*B6^2*(F22-E22)*7.48 -> 0.221782984
A16: Initial Filter LNAPL Vol. (gal.): | B16: =IF(E22<B10,PI()*(B7^2-B6^2)*B8*(F22-B10)*7.48,PI()*(B7^2-B6^2)*B8*(F22-E22)*7.48) -> 0.1183121594
A17: Expected Thickness Recharged from Filter Pack (ft) | B17: =MAX(0,IFERROR(O22*(SUM(B15:B16)-B12)/SUM(B15:B16),O22)) -> 0
C19: Enter Data Here | I19: Water Table | J19: LNAPL | M19: LNAPL | U19: LNAPL | V19: Ave.
I20: Depth | J20: Drawdown | L20: Average | M20: Discharge | N20: sn | O20: bn | P20: re | S20: DTP | T20: DTW | U20: Volume | V20: re
B21: Time (min) | C21: DTP (ft btoc) | D21: DTW (ft btoc) | E21: DTP (ft bgs) | F21: DTW (ft bgs) | I21: (ft) | J21: sn (ft) | L21: Time (min) | M21: Qn (ft3/d) | N21: (ft) | O21: (ft) | P21: (ft) | S21: (ft bgs) | T21: (ft bgs) | U21: (gallons) | V21: (ft)
A22: Initial Fluid Levels: | B22: 0 | C22: 34.93 | D22: 36.3 | E22: =C22+B4-B5 -> 35.12 | F22: =D22+B4-B5 -> 36.49 | I22: =E22+(1-B$9)*(F22-E22) -> 35.4214 | O22: =F22-E22 -> 1.37
A24: Enter Test Data: | B24: 1 | C24: 36.33 | D24: 36.35 | E24: =IF(B24>0,C24+B$4-B$5,NA()) -> 36.52 | F24: =IF(B24>0,D24+B$4-B$5,NA()) -> 36.54 | I24: =E24+(1-B$9)*(F24-E24) -> 36.5244 | J24: =E24-E$22-E$7 -> 1.4 | O24: =F24-E24 -> 0.02 | U24: 0 | V24: =MAX(V25:V82)/(MAX(L25:L82)-L25) -> 0.1027813213
B25: 3 | C25: 35.95 | D25: 35.97 | E25: =IF(B25>0,C25+B$4-B$5,NA()) -> 36.14 | F25: =IF(B25>0,D25+B$4-B$5,NA()) -> 36.16 | I25: =E25+(1-B$9)*(F25-E25) -> 36.1444 | J25: 1.02 | L25: =IF(B25>0,0.5*(B24+B25),0) -> 2 | M25: =IF(B25>0,1440*PI()*P25^2*(E24-E25+F25-F24)/(B25-B24),NA()) -> 0 | N25: =0.5*(J24+J25) -> 1.21 | O25: =F25-E25 -> 0.02 | P25: =IF(B25>0,re(B$10,E25,F25,B$6,B$14,B$13), ) -> 0.1027813213 | S25: =(E24+E25)/2 -> 36.33 | T25: =(F24+F25)/2 -> 36.35 | U25: =U24+M25*(B25-B24)*7.48/1440 -> 0 | V25: 0
B26: 4 | C26: 35.72 | D26: 35.77 | E26: 35.91 | F26: 35.96 | I26: 35.921 | J26: 0.79 | L26: =IF(B26>0,0.5*(B25+B26),0) -> 3.5 | M26: =IF(B26>0,1440*PI()*P26^2*(E25-E26+F26-F25)/(B26-B25),NA()) -> 1.433712303 | N26: =0.5*(J25+J26) -> 0.905 | O26: =F26-E26 -> 0.05 | P26: =IF(B26>0,re(B$10,E26,F26,B$6,B$14,B$13), ) -> 0.1027813213 | S26: =(E25+E26)/2 -> 36.025 | T26: 36.06 | U26: =U25+M26*(B26-B25)*7.48/1440 -> 0.007447338907 | V26: =IF(P26>0,V25+0.5*(P25+P26)*(L26-L25),0) -> 0.1541719819
B27: 5 | C27: 35.57 | D27: 35.63 | E27: 35.76 | F27: 35.82 | I27: 35.7732 | J27: 0.64 | L27: 4.5 | M27: 0.477904101 | N27: 0.715 | O27: 0.06 | P27: =IF(B27>0,re(B$10,E27,F27,B$6,B$14,B$13), ) -> 0.1027813213 | S27: 35.835 | T27: 35.89 | U27: 0.00992978521 | V27: =IF(P27>0,V26+0.5*(P26+P27)*(L27-L26),0) -> 0.2569533032
B28: 6 | C28: 35.45 | D28: 35.53 | E28: 35.64 | F28: 35.72 | I28: 35.6576 | J28: 0.52 | L28: 5.5 | M28: 0.955808202 | N28: 0.58 | O28: 0.08 | P28: =IF(B28>0,re(B$10,E28,F28,B$6,B$14,B$13), ) -> 0.1027813213 | S28: 35.7 | T28: 35.77 | U28: 0.01489467781 | V28: 0.3597346244
B29: 7 | C29: 35.38 | D29: 35.45 | E29: 35.57 | F29: 35.64 | I29: 35.5854 | J29: 0.45 | L29: 6.5 | M29: -0.477904101 | N29: 0.485 | O29: 0.07 | P29: =IF(B29>0,re(B$10,E29,F29,B$6,B$14,B$13), ) -> 0.1027813213 | S29: 35.605 | T29: 35.68 | U29: 0.01241223151 | V29: 0.4625159457
B30: 8 | C30: 35.32 | D30: 35.43 | E30: 35.51 | F30: 35.62 | I30: 35.5342 | J30: 0.39 | L30: 7.5 | M30: 1.911616404 | N30: 0.42 | O30: 0.11 | P30: =IF(B30>0,re(B$10,E30,F30,B$6,B$14,B$13), ) -> 0.1027813213 | S30: 35.54 | T30: 35.63 | U30: 0.02234201672 | V30: 0.5652972669
B31: 9 | C31: 35.31 | D31: 35.41 | E31: 35.5 | F31: 35.6 | I31: 35.522 | J31: 0.38 | L31: 8.5 | M31: -0.477904101 | N31: 0.385 | O31: 0.1 | P31: =IF(B31>0,re(B$10,E31,F31,B$6,B$14,B$13), ) -> 0.1027813213 | S31: 35.505 | T31: 35.61 | U31: 0.01985957042 | V31: 0.6680785882
B32: 10 | C32: 35.28 | D32: 35.41 | E32: 35.47 | F32: 35.6 | I32: 35.4986 | J32: 0.35 | L32: 9.5 | M32: 1.433712303 | N32: 0.365 | O32: 0.13 | P32: =IF(B32>0,re(B$10,E32,F32,B$6,B$14,B$13), ) -> 0.1027813213 | S32: 35.485 | T32: 35.6 | U32: 0.02730690933 | V32: 0.7708599095
B33: 11 | C33: 35.26 | D33: 35.41 | E33: 35.45 | F33: 35.6 | I33: 35.483 | J33: 0.33 | L33: 10.5 | M33: 0.955808202 | N33: 0.34 | O33: 0.15 | P33: =IF(B33>0,re(B$10,E33,F33,B$6,B$14,B$13), ) -> 0.1027813213 | S33: 35.46 | T33: 35.6 | U33: 0.03227180193 | V33: 0.8736412307
B34: 13 | C34: 35.25 | D34: 35.4 | E34: 35.44 | F34: 35.59 | I34: 35.473 | J34: 0.32 | L34: 12 | M34: 0 | N34: 0.325 | O34: 0.15 | P34: =IF(B34>0,re(B$10,E34,F34,B$6,B$14,B$13), ) -> 0.1027813213 | S34: 35.445 | T34: 35.595 | U34: 0.03227180193 | V34: 1.027813213
B35: 15 | C35: 35.24 | D35: 35.4 | E35: 35.43 | F35: 35.59 | I35: 35.4652 | J35: 0.31 | L35: 14 | M35: 0.2389520505 | N35: 0.315 | O35: 0.16 | P35: =IF(B35>0,re(B$10,E35,F35,B$6,B$14,B$13), ) -> 0.1027813213 | S35: 35.435 | T35: 35.59 | U35: 0.03475424823 | V35: 1.233375855
B36: 17 | C36: 35.23 | D36: 35.4 | E36: 35.42 | F36: 35.59 | I36: 35.4574 | J36: 0.3 | L36: 16 | M36: 0.2389520505 | N36: 0.305 | O36: 0.17 | P36: =IF(B36>0,re(B$10,E36,F36,B$6,B$14,B$13), ) -> 0.1027813213 | S36: 35.425 | T36: 35.59 | U36: 0.03723669454 | V36: 1.438938498
B37: 19 | C37: 35.23 | D37: 35.4 | E37: 35.42 | F37: 35.59 | I37: 35.4574 | J37: 0.3 | L37: 18 | M37: 0 | N37: 0.3 | O37: 0.17 | P37: =IF(B37>0,re(B$10,E37,F37,B$6,B$14,B$13), ) -> 0.1027813213 | S37: 35.42 | T37: 35.59 | U37: 0.03723669454 | V37: 1.64450114
B38: 21 | C38: 35.22 | D38: 35.4 | E38: 35.41 | F38: 35.59 | I38: 35.4496 | J38: 0.29 | L38: 20 | M38: 0.2389520505 | N38: 0.295 | O38: 0.18 | P38: =IF(B38>0,re(B$10,E38,F38,B$6,B$14,B$13), ) -> 0.1027813213 | S38: 35.415 | T38: 35.59 | U38: 0.03971914084 | V38: 1.850063783
B39: 31 | C39: 35.21 | D39: 35.41 | E39: 35.4 | F39: 35.6 | I39: 35.444 | J39: 0.28 | L39: 26 | M39: 0.0955808202 | N39: 0.285 | O39: 0.2 | P39: =IF(B39>0,re(B$10,E39,F39,B$6,B$14,B$13), ) -> 0.1027813213 | S39: 35.405 | T39: 35.595 | U39: 0.04468403344 | V39: 2.46675171
B40: 41 | C40: 35.21 | D40: 35.41 | E40: 35.4 | F40: 35.6 | I40: 35.444 | J40: 0.28 | L40: 36 | M40: 0 | N40: 0.28 | O40: 0.2 | P40: =IF(B40>0,re(B$10,E40,F40,B$6,B$14,B$13), ) -> 0.1027813213 | S40: 35.4 | T40: 35.6 | U40: 0.04468403344 | V40: 3.494564923
B41: 51 | C41: 35.21 | D41: 35.48 | E41: 35.4 | F41: 35.67 | I41: 35.4594 | J41: 0.28 | L41: 46 | M41: 0.3345328707 | N41: 0.28 | O41: 0.27 | P41: =IF(B41>0,re(B$10,E41,F41,B$6,B$14,B$13), ) -> 0.1027813213 | S41: 35.4 | T41: 35.635 | U41: 0.06206115756 | V41: 4.522378135
B42: 61 | C42: 35.21 | D42: 35.42 | E42: 35.4 | F42: 35.61 | I42: 35.4462 | J42: 0.28 | L42: 56 | M42: -0.2867424606 | N42: 0.28 | O42: 0.21 | P42: =IF(B42>0,re(B$10,E42,F42,B$6,B$14,B$13), ) -> 0.1027813213 | S42: 35.4 | T42: 35.64 | U42: 0.04716647975 | V42: 5.550191348
B43: 71 | C43: 35.2 | D43: 35.42 | E43: 35.39 | F43: 35.61 | I43: 35.4384 | J43: 0.27 | L43: 66 | M43: 0.0477904101 | N43: 0.275 | O43: 0.22 | P43: =IF(B43>0,re(B$10,E43,F43,B$6,B$14,B$13), ) -> 0.1027813213 | S43: 35.395 | T43: 35.61 | U43: 0.04964892605 | V43: 6.578004561
B44: 81 | C44: 35.2 | D44: 35.42 | E44: 35.39 | F44: 35.61 | I44: =E44+(1-B$9)*(F44-E44) -> 35.4384 | J44: 0.27 | L44: 76 | M44: 0 | N44: =0.5*(J43+J44) -> 0.27 | O44: =F44-E44 -> 0.22 | P44: =IF(B44>0,re(B$10,E44,F44,B$6,B$14,B$13), ) -> 0.1027813213 | S44: 35.39 | T44: 35.61 | U44: 0.04964892605 | V44: 7.605817773
B45: 91 | C45: 35.2 | D45: 35.43 | E45: 35.39 | F45: 35.62 | I45: 35.4406 | J45: 0.27 | L45: 86 | M45: 0.0477904101 | N45: 0.27 | O45: 0.23 | P45: =IF(B45>0,re(B$10,E45,F45,B$6,B$14,B$13), ) -> 0.1027813213 | S45: 35.39 | T45: 35.615 | U45: 0.05213137235 | V45: 8.633630986
B46: 121 | C46: 35.19 | D46: 35.44 | E46: 35.38 | F46: 35.63 | I46: =E46+(1-B$9)*(F46-E46) -> 35.435 | J46: 0.26 | L46: 106 | M46: 0.0318602734 | N46: =0.5*(J45+J46) -> 0.265 | O46: =F46-E46 -> 0.25 | P46: =IF(B46>0,re(B$10,E46,F46,B$6,B$14,B$13), ) -> 0.1027813213 | S46: 35.385 | T46: 35.625 | U46: 0.05709626496 | V46: 10.68925741
B47: 151 | C47: 35.19 | D47: 35.6 | E47: 35.38 | F47: 35.79 | I47: =E47+(1-B$9)*(F47-E47) -> 35.4702 | J47: 0.26 | L47: 136 | M47: 0.2548821872 | N47: =0.5*(J46+J47) -> 0.26 | O47: =F47-E47 -> 0.41 | P47: =IF(B47>0,re(B$10,E47,F47,B$6,B$14,B$13), ) -> 0.1027813213 | S47: =(E46+E47)/2 -> 35.38 | T47: =(F46+F47)/2 -> 35.71 | U47: =U46+M47*(B47-B46)*7.48/1440 -> 0.0968154058 | V47: 13.77269705
B48: 181 | C48: 35.19 | D48: 35.47 | E48: 35.38 | F48: 35.66 | I48: 35.4416 | J48: 0.26 | L48: 166 | M48: -0.2070917771 | N48: 0.26 | O48: 0.28 | P48: =IF(B48>0,re(B$10,E48,F48,B$6,B$14,B$13), ) -> 0.1027813213 | S48: 35.38 | T48: 35.725 | U48: 0.06454360386 | V48: 16.85613669
B49: 211 | C49: 35.18 | D49: 35.47 | E49: 35.37 | F49: 35.66 | I49: 35.4338 | J49: 0.25 | L49: 196 | M49: 0.0159301367 | N49: 0.255 | O49: 0.29 | P49: =IF(B49>0,re(B$10,E49,F49,B$6,B$14,B$13), ) -> 0.1027813213 | S49: 35.375 | T49: 35.66 | U49: 0.06702605017 | V49: 19.93957632
B50: 241 | C50: 35.18 | D50: 35.47 | E50: 35.37 | F50: 35.66 | I50: 35.4338 | J50: 0.25 | L50: 226 | M50: 0 | N50: 0.25 | O50: 0.29 | P50: =IF(B50>0,re(B$10,E50,F50,B$6,B$14,B$13), ) -> 0.1027813213 | S50: 35.37 | T50: 35.66 | U50: 0.06702605017 | V50: 23.02301596
B51: 271 | C51: 35.18 | D51: 35.48 | E51: 35.37 | F51: 35.67 | I51: 35.436 | J51: 0.25 | L51: 256 | M51: 0.0159301367 | N51: 0.25 | O51: 0.3 | P51: =IF(B51>0,re(B$10,E51,F51,B$6,B$14,B$13), ) -> 0.1027813213 | S51: 35.37 | T51: 35.665 | U51: 0.06950849647 | V51: 26.1064556
B52: 301 | C52: 35.17 | D52: 35.48 | E52: 35.36 | F52: 35.67 | I52: 35.4282 | J52: 0.24 | L52: 286 | M52: 0.0159301367 | N52: 0.245 | O52: 0.31 | P52: =IF(B52>0,re(B$10,E52,F52,B$6,B$14,B$13), ) -> 0.1027813213 | S52: 35.365 | T52: 35.67 | U52: 0.07199094277 | V52: 29.18989524
L53: 0 | P53: =IF(B53>0,re(B$10,E53,F53,B$6,B$14,B$13), ) -> 0 | V53: 0
L54: 0 | P54: =IF(B54>0,re(B$10,E54,F54,B$6,B$14,B$13), ) -> 0 | V54: 0
L55: 0 | P55: =IF(B55>0,re(B$10,E55,F55,B$6,B$14,B$13), ) -> 0 | V55: 0
J56: =E56-E$22-E$7 ->  | L56: 0 | P56: =IF(B56>0,re(B$10,E56,F56,B$6,B$14,B$13), ) -> 0 | V56: 0
L57: 0 | P57: =IF(B57>0,re(B$10,E57,F57,B$6,B$14,B$13), ) -> 0 | V57: 0
L58: 0 | P58: =IF(B58>0,re(B$10,E58,F58,B$6,B$14,B$13), ) -> 0 | V58: 0
L59: 0 | P59: =IF(B59>0,re(B$10,E59,F59,B$6,B$14,B$13), ) -> 0 | V59: 0
L60: 0 | P60: =IF(B60>0,re(B$10,E60,F60,B$6,B$14,B$13), ) -> 0 | V60: 0
L61: 0 | P61: =IF(B61>0,re(B$10,E61,F61,B$6,B$14,B$13), ) -> 0 | V61: 0
L62: 0 | P62: =IF(B62>0,re(B$10,E62,F62,B$6,B$14,B$13), ) -> 0 | V62: 0
L63: 0 | P63: =IF(B63>0,re(B$10,E63,F63,B$6,B$14,B$13), ) -> 0 | V63: 0
L64: 0 | P64: =IF(B64>0,re(B$10,E64,F64,B$6,B$14,B$13), ) -> 0 | V64: 0
L65: 0 | P65: =IF(B65>0,re(B$10,E65,F65,B$6,B$14,B$13), ) -> 0 | V65: 0
L66: 0 | P66: =IF(B66>0,re(B$10,E66,F66,B$6,B$14,B$13), ) -> 0 | V66: 0
L67: 0 | P67: =IF(B67>0,re(B$10,E67,F67,B$6,B$14,B$13), ) -> 0 | V67: 0
L68: 0 | P68: =IF(B68>0,re(B$10,E68,F68,B$6,B$14,B$13), ) -> 0 | V68: 0
L69: 0 | P69: =IF(B69>0,re(B$10,E69,F69,B$6,B$14,B$13), ) -> 0 | V69: 0
L70: 0 | P70: =IF(B70>0,re(B$10,E70,F70,B$6,B$14,B$13), ) -> 0 | V70: 0
L71: 0 | P71: =IF(B71>0,re(B$10,E71,F71,B$6,B$14,B$13), ) -> 0 | V71: 0
L72: 0 | P72: =IF(B72>0,re(B$10,E72,F72,B$6,B$14,B$13), ) -> 0 | V72: 0
L73: 0 | P73: =IF(B73>0,re(B$10,E73,F73,B$6,B$14,B$13), ) -> 0 | V73: 0
L74: 0 | P74: =IF(B74>0,re(B$10,E74,F74,B$6,B$14,B$13), ) -> 0 | V74: 0
L75: 0 | P75: =IF(B75>0,re(B$10,E75,F75,B$6,B$14,B$13), ) -> 0 | V75: 0
L76: 0 | P76: =IF(B76>0,re(B$10,E76,F76,B$6,B$14,B$13), ) -> 0 | V76: 0
L77: 0 | P77: =IF(B77>0,re(B$10,E77,F77,B$6,B$14,B$13), ) -> 0 | V77: 0
L78: 0 | P78: =IF(B78>0,re(B$10,E78,F78,B$6,B$14,B$13), ) -> 0 | V78: 0
L79: 0 | P79: =IF(B79>0,re(B$10,E79,F79,B$6,B$14,B$13), ) -> 0 | V79: 0
L80: 0 | P80: =IF(B80>0,re(B$10,E80,F80,B$6,B$14,B$13), ) -> 0 | V80: 0
L81: 0 | P81: =IF(B81>0,re(B$10,E81,F81,B$6,B$14,B$13), ) -> 0 | V81: 0
L82: 0 | P82: =IF(B82>0,re(B$10,E82,F82,B$6,B$14,B$13), ) -> 0 | V82: 0
P84: =AVERAGE(P25:P82) -> 0.04961856888

Sheet Figures
D2: Figure 1 | L2: Figure 2
T3: =0.8*MIN(Data!B24:B82) -> 0.8 | U3: =Data!E22 -> 35.12
T4: =MAX(Data!B24:B82) -> 301 | U4: =U3 -> 35.12
T5: =T3 -> 0.8 | U5: =Data!F22 -> 36.49
T6: =T4 -> 301 | U6: =U5 -> 36.49
T8: =T4/4 -> 75.25 | U8: =IF(V8<V9,V8,NA()) -> 34.12 | V8: =IF(Data!B10>Data!E22,Data!B10,Data!E22-1) -> 34.12
T9: =T8 -> 75.25 | U9: =IF(V8<V9,V9,NA()) -> 37.49 | V9: =IF(Data!B11<Data!F22,Data!B11,Data!F22+1) -> 37.49
D21: Figure 3 | L21: Figure 4
B22: Qn (ft3/d) | C22: sn (ft) | T22: bn | U22: sn
B23: 0 | C23: 0 | T23: 0 | U23: 0
B24: 1 | C24: 0.38 | T24: 0 | U24: 0
B27: Drawdown Adjust. | T27: J-ratio | U27: =(U23-U24)/(T23-T24) -> 
B28: Dsn (ft) | C28: 0
D41: Figure 5 | L41: Figure 6
D60: Figure 7 | L60: Figure 8
D79: Figure 9 | L79: Figure 10
T86: t (min) | U86: sn (ft)
T87: 12 | U87: 0.115
T88: 12 | U88: 0

Sheet B&R
A1: Generalized Bouwer and Rice (1976)
A2: Well Designation: | C2: =IF(Data!B1 > 0,Data!B1,"") -> MW16
A3: Date: | C3: =IF(Data!B2 > 0,Data!B2,"") -> 2021-11-09 | U3: y = A + B x
X4: B&R Type Curve
M5: Xi | N5: Yi | O5: X2 | P5: XY | Q5: (y-A-Bx)2 | R5: e | S5: count | T5: s/s0 | U5: SX | V5: =SUM(M6:M64) -> 1968 | X5: t (min) | Y5: s/s0 | AA5: Xi | AB5: Yi
M6: =IF(Data!B24>=D$9,Data!B24-D$9,0) -> 0 | N6: =IF(S6>0,LN(Data!J24),0) -> 0 | O6: =M6^2 -> 0 | P6: =M6*N6 -> 0 | Q6: =IF(M6>0,(N6-V$11-V$12*M6)^2,0) -> 0 | R6: =IF(M6>0,(N6-V$11-V$12*M6)/SQRT(V$14),0) -> 0 | S6: =IF(Data!B24>'B&R'!D$9,1,0) -> 0 | T6: =IF(S6=0,NA(),EXP(N6)/EXP(V$19)) ->  | U6: SY | V6: =SUM(N6:N64) -> -30.80564119 | X6: 0 | Y6: =EXP(-2*E$12*(X6/1440)*(-J$15)/(Data!V$24^2*LN('B&R'!J$12))) ->  | AA6: =IF(S6>0,M6,NA()) ->  | AB6: =IF(T6>0,N6,NA()) -> 
B7: Enter early time cut-off for least-squares model fit | J7: Le/re | M7: =IF(Data!B25>=D$9,Data!B25-D$9,0) -> 0 | N7: =IF(S7>0,LN(Data!J25),0) -> 0 | O7: =M7^2 -> 0 | P7: =M7*N7 -> 0 | Q7: =IF(M7>0,(N7-V$11-V$12*M7)^2,0) -> 0 | R7: =IF(M7>0,(N7-V$11-V$12*M7)/SQRT(V$14),0) -> 0 | S7: =IF(Data!B25>'B&R'!D$9,1,0) -> 0 | T7: =IF(S7=0,NA(),EXP(N7)/EXP(V$19)) ->  | U7: SX2 | V7: =SUM(O6:O64) -> 355620 | X7: =X6+1.05*(MAX(M$6:M$64)/30) -> 10.43 | Y7: =EXP(-2*E$12*(X7/1440)*(-J$15)/(Data!V$24^2*LN('B&R'!J$12))) ->  | AA7: =IF(S7>0,M7,NA()) ->  | AB7: =IF(T7>0,N7,NA()) -> 
J8: =IF(Data!E22<Data!B10,(Data!F22-Data!B10)/Data!B13,(Data!F22-Data!E22)/Data!B13) -> 13.32927017 | M8: =IF(Data!B26>=D$9,Data!B26-D$9,0) -> 1 | N8: =IF(S8>0,LN(Data!J26),0) -> -0.2357223335 | O8: 1 | P8: -0.2357223335 | Q8: 0.587230114 | R8: 3.121940642 | S8: =IF(Data!B26>'B&R'!D$9,1,0) -> 1 | T8: 2.147655997 | U8: SXY | V8: =SUM(P6:P64) -> -2655.394811 | X8: =X7+1.05*(MAX(M$6:M$64)/30) -> 20.86 | Y8: =EXP(-2*E$12*(X8/1440)*(-J$15)/(Data!V$24^2*LN('B&R'!J$12))) ->  | AA8: 1 | AB8: -0.2357223335
C9: Timecut | D9: 3 | E9: <- Enter or change value here | J9: C | M9: =IF(Data!B27>=D$9,Data!B27-D$9,0) -> 2 | N9: =IF(S9>0,LN(Data!J27),0) -> -0.4462871026 | O9: 4 | P9: -0.8925742053 | Q9: 0.311003681 | R9: 2.271973423 | S9: =IF(Data!B27>'B&R'!D$9,1,0) -> 1 | T9: 1.739873213 | U9: N | V9: =SUM(S6:S64) -> 27 | X9: 31.29 | Y9: =EXP(-2*E$12*(X9/1440)*(-J$15)/(Data!V$24^2*LN('B&R'!J$12))) ->  | AA9: 2 | AB9: -0.4462871026
J10: =IF(J8<2000,0.792+0.03993*J8-0.00005743^J8^2+0.00000003858*J8^3-0.000000000009659*J8^4,13.5) -> 1.324328818 | M10: =IF(Data!B28>=D$9,Data!B28-D$9,0) -> 3 | N10: =IF(S10>0,LN(Data!J28),0) -> -0.6539264674 | O10: 9 | P10: -1.961779402 | Q10: 0.1238829323 | R10: 1.433924287 | S10: =IF(Data!B28>'B&R'!D$9,1,0) -> 1 | T10: 1.413646986 | U10: D | V10: =V9*V7-V5^2 -> 5728716 | X10: 41.72 | Y10: =EXP(-2*E$12*(X10/1440)*(-J$15)/(Data!V$24^2*LN('B&R'!J$12))) ->  | AA10: 3 | AB10: -0.6539264674
J11: R/re | M11: =IF(Data!B29>=D$9,Data!B29-D$9,0) -> 4 | N11: =IF(S11>0,LN(Data!J29),0) -> -0.7985076962 | O11: 16 | P11: -3.194030785 | Q11: 0.04381538236 | R11: 0.8527736748 | S11: =IF(Data!B29>'B&R'!D$9,1,0) -> 1 | T11: 1.223348353 | U11: A | V11: =(V7*V6-V5*V8)/V10 -> -1.000099347 | X11: 52.15 | Y11: =EXP(-2*E$12*(X11/1440)*(-J$15)/(Data!V$24^2*LN('B&R'!J$12))) ->  | AA11: 4 | AB11: -0.7985076962
B12: Model Results: | D12: Tn (ft2/d) = | E12: =1440*V22*(-V12) ->  | F12: +/- | G12: =1440*V22*SQRT(V15) ->  | H12: ft2/d | J12: =EXP(((1.1/LN(J8))+J10/J8)^-1) -> 6.740515896 | M12: =IF(Data!B30>=D$9,Data!B30-D$9,0) -> 5 | N12: =IF(S12>0,LN(Data!J30),0) -> -0.9416085399 | O12: 25 | P12: -4.708042699 | Q12: 0.004644803624 | R12: 0.2776541447 | S12: =IF(Data!B30>'B&R'!D$9,1,0) -> 1 | T12: 1.060235239 | U12: B | V12: =(V9*V8-V5*V6)/V10 -> -0.001932397773 | X12: 62.58 | Y12: =EXP(-2*E$12*(X12/1440)*(-J$15)/(Data!V$24^2*LN('B&R'!J$12))) ->  | AA12: 5 | AB12: -0.9416085399
M13: =IF(Data!B31>=D$9,Data!B31-D$9,0) -> 6 | N13: =IF(S13>0,LN(Data!J31),0) -> -0.9675840263 | O13: =M13^2 -> 36 | P13: =M13*N13 -> -5.805504158 | Q13: =IF(M13>0,(N13-V$11-V$12*M13)^2,0) -> 0.001945666298 | R13: =IF(M13>0,(N13-V$11-V$12*M13)/SQRT(V$14),0) -> 0.179702724 | S13: =IF(Data!B31>'B&R'!D$9,1,0) -> 1 | T13: =IF(S13=0,NA(),EXP(N13)/EXP(V$19)) -> 1.03304972 | X13: 73.01 | Y13: =EXP(-2*E$12*(X13/1440)*(-J$15)/(Data!V$24^2*LN('B&R'!J$12))) ->  | AA13: 6 | AB13: -0.9675840263
J14: J-Ratio | M14: =IF(Data!B32>=D$9,Data!B32-D$9,0) -> 7 | N14: =IF(S14>0,LN(Data!J32),0) -> -1.049822124 | O14: 49 | P14: -7.348754871 | Q14: 0.001310149905 | R14: -0.147462291 | S14: =IF(Data!B32>'B&R'!D$9,1,0) -> 1 | T14: 0.9514931634 | U14: sy2 | V14: =SUM(Q6:Q64)/(V9-2) -> 0.06025027529 | X14: 83.44 | Y14: =EXP(-2*E$12*(X14/1440)*(-J$15)/(Data!V$24^2*LN('B&R'!J$12))) ->  | AA14: 7 | AB14: -1.049822124
J15: =Figures!U27 ->  | M15: =IF(Data!B33>=D$9,Data!B33-D$9,0) -> 8 | N15: =IF(S15>0,LN(Data!J33),0) -> -1.108662625 | O15: =M15^2 -> 64 | P15: =M15*N15 -> -8.869300996 | Q15: =IF(M15>0,(N15-V$11-V$12*M15)^2,0) -> 0.008668372541 | R15: =IF(M15>0,(N15-V$11-V$12*M15)/SQRT(V$14),0) -> -0.37930561 | S15: =IF(Data!B33>'B&R'!D$9,1,0) -> 1 | T15: =IF(S15=0,NA(),EXP(N15)/EXP(V$19)) -> 0.8971221255 | U15: sB2 | V15: =V9*V14/V10 -> 2.839654528e-07 | X15: 93.87 | Y15: =EXP(-2*E$12*(X15/1440)*(-J$15)/(Data!V$24^2*LN('B&R'!J$12))) ->  | AA15: 8 | AB15: -1.108662625
M16: =IF(Data!B34>=D$9,Data!B34-D$9,0) -> 10 | N16: =IF(S16>0,LN(Data!J34),0) -> -1.139434283 | O16: 100 | P16: -11.39434283 | Q16: 0.01440263011 | R16: -0.4889240334 | S16: =IF(Data!B34>'B&R'!D$9,1,0) -> 1 | T16: 0.8699366065 | X16: 104.3 | Y16: =EXP(-2*E$12*(X16/1440)*(-J$15)/(Data!V$24^2*LN('B&R'!J$12))) ->  | AA16: 10 | AB16: -1.139434283
M17: =IF(Data!B35>=D$9,Data!B35-D$9,0) -> 12 | N17: =IF(S17>0,LN(Data!J35),0) -> -1.171182982 | O17: 144 | P17: -14.05419578 | Q17: 0.02187288993 | R17: -0.6025229114 | S17: =IF(Data!B35>'B&R'!D$9,1,0) -> 1 | T17: 0.8427510876 | X17: 114.73 | Y17: =EXP(-2*E$12*(X17/1440)*(-J$15)/(Data!V$24^2*LN('B&R'!J$12))) ->  | AA17: 12 | AB17: -1.171182982
M18: =IF(Data!B36>=D$9,Data!B36-D$9,0) -> 14 | N18: =IF(S18>0,LN(Data!J36),0) -> -1.203972804 | O18: 196 | P18: -16.85561926 | Q18: 0.03126527292 | R18: -0.7203633254 | S18: =IF(Data!B36>'B&R'!D$9,1,0) -> 1 | T18: 0.8155655686 | U18: Plot Model Line | X18: 125.16 | Y18: =EXP(-2*E$12*(X18/1440)*(-J$15)/(Data!V$24^2*LN('B&R'!J$12))) ->  | AA18: 14 | AB18: -1.203972804
M19: =IF(Data!B37>=D$9,Data!B37-D$9,0) -> 16 | N19: =IF(S19>0,LN(Data!J37),0) -> -1.203972804 | O19: 256 | P19: -19.26356487 | Q19: 0.02991346413 | R19: -0.704618168 | S19: =IF(Data!B37>'B&R'!D$9,1,0) -> 1 | T19: 0.8155655686 | U19: 0 | V19: =V11 -> -1.000099347 | X19: 135.59 | Y19: =EXP(-2*E$12*(X19/1440)*(-J$15)/(Data!V$24^2*LN('B&R'!J$12))) ->  | AA19: 16 | AB19: -1.203972804
J20: Coef. Of | M20: =IF(Data!B38>=D$9,Data!B38-D$9,0) -> 18 | N20: =IF(S20>0,LN(Data!J38),0) -> -1.237874356 | O20: 324 | P20: -22.28173841 | Q20: 0.04120569073 | R20: -0.8269877596 | S20: =IF(Data!B38>'B&R'!D$9,1,0) -> 1 | T20: 0.7883800497 | U20: =MAX(M6:M64) -> 298 | V20: =V11+V12*U20 -> -1.575953884 | X20: 146.02 | Y20: =EXP(-2*E$12*(X20/1440)*(-J$15)/(Data!V$24^2*LN('B&R'!J$12))) ->  | AA20: 18 | AB20: -1.237874356
J21: Variation | M21: =IF(Data!B39>=D$9,Data!B39-D$9,0) -> 28 | N21: =IF(S21>0,LN(Data!J39),0) -> -1.272965676 | O21: 784 | P21: -35.64303892 | Q21: 0.04785558365 | R21: -0.891223831 | S21: =IF(Data!B39>'B&R'!D$9,1,0) -> 1 | T21: 0.7611945307 | X21: 156.45 | Y21: =EXP(-2*E$12*(X21/1440)*(-J$15)/(Data!V$24^2*LN('B&R'!J$12))) ->  | AA21: 28 | AB21: -1.272965676
J22: =G12/E12 ->  | M22: =IF(Data!B40>=D$9,Data!B40-D$9,0) -> 38 | N22: =IF(S22>0,LN(Data!J40),0) -> -1.272965676 | O22: 1444 | P22: -48.37269568 | Q22: 0.0397744043 | R22: -0.8124980441 | S22: =IF(Data!B40>'B&R'!D$9,1,0) -> 1 | T22: 0.7611945307 | U22: factor | V22: =Data!V24^2*LN('B&R'!J12)/(2*(-Figures!U27)) ->  | X22: 166.88 | Y22: =EXP(-2*E$12*(X22/1440)*(-J$15)/(Data!V$24^2*LN('B&R'!J$12))) ->  | AA22: 38 | AB22: -1.272965676
M23: =IF(Data!B41>=D$9,Data!B41-D$9,0) -> 48 | N23: =IF(S23>0,LN(Data!J41),0) -> -1.272965676 | O23: 2304 | P23: -61.10235244 | Q23: 0.03244005717 | R23: -0.7337722571 | S23: =IF(Data!B41>'B&R'!D$9,1,0) -> 1 | T23: 0.7611945307 | X23: 177.31 | Y23: =EXP(-2*E$12*(X23/1440)*(-J$15)/(Data!V$24^2*LN('B&R'!J$12))) ->  | AA23: 48 | AB23: -1.272965676
M24: =IF(Data!B42>=D$9,Data!B42-D$9,0) -> 58 | N24: =IF(S24>0,LN(Data!J42),0) -> -1.272965676 | O24: 3364 | P24: -73.8320092 | Q24: 0.02585254228 | R24: -0.6550464702 | S24: =IF(Data!B42>'B&R'!D$9,1,0) -> 1 | T24: 0.7611945307 | X24: 187.74 | Y24: =EXP(-2*E$12*(X24/1440)*(-J$15)/(Data!V$24^2*LN('B&R'!J$12))) ->  | AA24: 58 | AB24: -1.272965676
M25: =IF(Data!B43>=D$9,Data!B43-D$9,0) -> 68 | N25: =IF(S25>0,LN(Data!J43),0) -> -1.30933332 | O25: 4624 | P25: -89.03466576 | Q25: 0.03162383763 | R25: -0.7244822805 | S25: =IF(Data!B43>'B&R'!D$9,1,0) -> 1 | T25: 0.7340090118 | U25: s0 (ft) | V25: =EXP(V19) -> 0.3678428952 | X25: 198.17 | Y25: =EXP(-2*E$12*(X25/1440)*(-J$15)/(Data!V$24^2*LN('B&R'!J$12))) ->  | AA25: 68 | AB25: -1.30933332
M26: =IF(Data!B44>=D$9,Data!B44-D$9,0) -> 78 | N26: =IF(S26>0,LN(Data!J44),0) -> -1.30933332 | O26: 6084 | P26: -102.127999 | Q26: 0.0251244521 | R26: -0.6457564936 | S26: =IF(Data!B44>'B&R'!D$9,1,0) -> 1 | T26: 0.7340090118 | X26: 208.6 | Y26: =EXP(-2*E$12*(X26/1440)*(-J$15)/(Data!V$24^2*LN('B&R'!J$12))) ->  | AA26: 78 | AB26: -1.30933332
M27: =IF(Data!B45>=D$9,Data!B45-D$9,0) -> 88 | N27: =IF(S27>0,LN(Data!J45),0) -> -1.30933332 | O27: 7744 | P27: -115.2213322 | Q27: 0.01937189881 | R27: -0.5670307067 | S27: =IF(Data!B45>'B&R'!D$9,1,0) -> 1 | T27: 0.7340090118 | X27: 219.03 | Y27: =EXP(-2*E$12*(X27/1440)*(-J$15)/(Data!V$24^2*LN('B&R'!J$12))) ->  | AA27: 88 | AB27: -1.30933332
M28: =IF(Data!B46>=D$9,Data!B46-D$9,0) -> 118 | N28: =IF(S28>0,LN(Data!J46),0) -> -1.347073648 | O28: 13924 | P28: -158.9546905 | Q28: 0.0141494269 | R28: -0.48460725 | S28: =IF(Data!B46>'B&R'!D$9,1,0) -> 1 | T28: 0.7068234928 | X28: 229.46 | Y28: =EXP(-2*E$12*(X28/1440)*(-J$15)/(Data!V$24^2*LN('B&R'!J$12))) ->  | AA28: 118 | AB28: -1.347073648
M29: =IF(Data!B47>=D$9,Data!B47-D$9,0) -> 148 | N29: =IF(S29>0,LN(Data!J47),0) -> -1.347073648 | O29: 21904 | P29: -199.3668999 | Q29: 0.003718490933 | R29: -0.2484298892 | S29: =IF(Data!B47>'B&R'!D$9,1,0) -> 1 | T29: 0.7068234928 | X29: 239.89 | Y29: =EXP(-2*E$12*(X29/1440)*(-J$15)/(Data!V$24^2*LN('B&R'!J$12))) ->  | AA29: 148 | AB29: -1.347073648
M30: =IF(Data!B48>=D$9,Data!B48-D$9,0) -> 178 | N30: =IF(S30>0,LN(Data!J48),0) -> -1.347073648 | O30: 31684 | P30: -239.7791093 | Q30: 9.045039525e-06 | R30: -0.01225252837 | S30: =IF(Data!B48>'B&R'!D$9,1,0) -> 1 | T30: 0.7068234928 | X30: 250.32 | Y30: =EXP(-2*E$12*(X30/1440)*(-J$15)/(Data!V$24^2*LN('B&R'!J$12))) ->  | AA30: 178 | AB30: -1.347073648
M31: =IF(Data!B49>=D$9,Data!B49-D$9,0) -> 208 | N31: =IF(S31>0,LN(Data!J49),0) -> -1.386294361 | O31: 43264 | P31: -288.3492271 | Q31: 0.0002478648082 | R31: 0.06413984664 | S31: =IF(Data!B49>'B&R'!D$9,1,0) -> 1 | T31: 0.6796379739 | X31: 260.75 | Y31: =EXP(-2*E$12*(X31/1440)*(-J$15)/(Data!V$24^2*LN('B&R'!J$12))) ->  | AA31: 208 | AB31: -1.386294361
M32: =IF(Data!B50>=D$9,Data!B50-D$9,0) -> 238 | N32: =IF(S32>0,LN(Data!J50),0) -> -1.386294361 | O32: 56644 | P32: -329.9380579 | Q32: 0.005433997941 | R32: 0.3003172075 | S32: =IF(Data!B50>'B&R'!D$9,1,0) -> 1 | T32: 0.6796379739 | X32: 271.18 | Y32: =EXP(-2*E$12*(X32/1440)*(-J$15)/(Data!V$24^2*LN('B&R'!J$12))) ->  | AA32: 238 | AB32: -1.386294361
M33: =IF(Data!B51>=D$9,Data!B51-D$9,0) -> 268 | N33: =IF(S33>0,LN(Data!J51),0) -> -1.386294361 | O33: 71824 | P33: -371.5268888 | Q33: 0.01734162115 | R33: 0.5364945683 | S33: =IF(Data!B51>'B&R'!D$9,1,0) -> 1 | T33: 0.6796379739 | X33: 281.61 | Y33: =EXP(-2*E$12*(X33/1440)*(-J$15)/(Data!V$24^2*LN('B&R'!J$12))) ->  | AA33: 268 | AB33: -1.386294361
M34: =IF(Data!B52>=D$9,Data!B52-D$9,0) -> 298 | N34: =IF(S34>0,LN(Data!J52),0) -> -1.427116356 | O34: 88804 | P34: -425.280674 | Q34: 0.0221526097 | R34: 0.6063633311 | S34: =IF(Data!B52>'B&R'!D$9,1,0) -> 1 | T34: 0.6524524549 | X34: 292.04 | Y34: =EXP(-2*E$12*(X34/1440)*(-J$15)/(Data!V$24^2*LN('B&R'!J$12))) ->  | AA34: 298 | AB34: -1.427116356
B35: C coefficient calculated from Eq. 6.5(c) of Butler, The Design, Performance, and | M35: =IF(Data!B53>=D$9,Data!B53-D$9,0) -> 0 | N35: =IF(S35>0,LN(Data!J53),0) -> 0 | O35: 0 | P35: 0 | Q35: 0 | R35: 0 | S35: =IF(Data!B53>'B&R'!D$9,1,0) -> 0 | X35: 302.47 | Y35: =EXP(-2*E$12*(X35/1440)*(-J$15)/(Data!V$24^2*LN('B&R'!J$12))) -> 
B36: Analysis of Slug Tests, CRC Press, 2000. | M36: =IF(Data!B54>=D$9,Data!B54-D$9,0) -> 0 | N36: =IF(S36>0,LN(Data!J54),0) -> 0 | O36: 0 | P36: 0 | Q36: 0 | R36: 0 | S36: =IF(Data!B54>'B&R'!D$9,1,0) -> 0 | X36: 312.9 | Y36: =EXP(-2*E$12*(X36/1440)*(-J$15)/(Data!V$24^2*LN('B&R'!J$12))) -> 
M37: =IF(Data!B55>=D$9,Data!B55-D$9,0) -> 0 | N37: =IF(S37>0,LN(Data!J55),0) -> 0 | O37: 0 | P37: 0 | Q37: 0 | R37: 0 | S37: =IF(Data!B55>'B&R'!D$9,1,0) -> 0
M38: =IF(Data!B56>=D$9,Data!B56-D$9,0) -> 0 | N38: =IF(S38>0,LN(Data!J56),0) -> 0 | O38: 0 | P38: 0 | Q38: 0 | R38: 0 | S38: =IF(Data!B56>'B&R'!D$9,1,0) -> 0
M39: =IF(Data!B57>=D$9,Data!B57-D$9,0) -> 0 | N39: =IF(S39>0,LN(Data!J57),0) -> 0 | O39: 0 | P39: 0 | Q39: 0 | R39: 0 | S39: =IF(Data!B57>'B&R'!D$9,1,0) -> 0 | X39: =TRUNC(100*E12)/100 -> 
M40: =IF(Data!B58>=D$9,Data!B58-D$9,0) -> 0 | N40: =IF(S40>0,LN(Data!J58),0) -> 0 | O40: 0 | P40: 0 | Q40: 0 | R40: 0 | S40: =IF(Data!B58>'B&R'!D$9,1,0) -> 0 | X40: =X39 -> 
M41: =IF(Data!B59>=D$9,Data!B59-D$9,0) -> 0 | N41: =IF(S41>0,LN(Data!J59),0) -> 0 | O41: 0 | P41: 0 | Q41: 0 | R41: 0 | S41: =IF(Data!B59>'B&R'!D$9,1,0) -> 0 | X41: =CONCATENATE(" T = ",X40," ft2/d") -> 
M42: =IF(Data!B60>=D$9,Data!B60-D$9,0) -> 0 | N42: =IF(S42>0,LN(Data!J60),0) -> 0 | O42: 0 | P42: 0 | Q42: 0 | R42: 0 | S42: =IF(Data!B60>'B&R'!D$9,1,0) -> 0
M43: =IF(Data!B61>=D$9,Data!B61-D$9,0) -> 0 | N43: =IF(S43>0,LN(Data!J61),0) -> 0 | O43: 0 | P43: 0 | Q43: 0 | R43: 0 | S43: =IF(Data!B61>'B&R'!D$9,1,0) -> 0
M44: =IF(Data!B62>=D$9,Data!B62-D$9,0) -> 0 | N44: =IF(S44>0,LN(Data!J62),0) -> 0 | O44: 0 | P44: 0 | Q44: 0 | R44: 0 | S44: =IF(Data!B62>'B&R'!D$9,1,0) -> 0
M45: =IF(Data!B63>=D$9,Data!B63-D$9,0) -> 0 | N45: =IF(S45>0,LN(Data!J63),0) -> 0 | O45: 0 | P45: 0 | Q45: 0 | R45: 0 | S45: =IF(Data!B63>'B&R'!D$9,1,0) -> 0
M46: =IF(Data!B64>=D$9,Data!B64-D$9,0) -> 0 | N46: =IF(S46>0,LN(Data!J64),0) -> 0 | O46: 0 | P46: 0 | Q46: 0 | R46: 0 | S46: =IF(Data!B64>'B&R'!D$9,1,0) -> 0
M47: =IF(Data!B65>=D$9,Data!B65-D$9,0) -> 0 | N47: =IF(S47>0,LN(Data!J65),0) -> 0 | O47: 0 | P47: 0 | Q47: 0 | R47: 0 | S47: =IF(Data!B65>'B&R'!D$9,1,0) -> 0
M48: =IF(Data!B66>=D$9,Data!B66-D$9,0) -> 0 | N48: =IF(S48>0,LN(Data!J66),0) -> 0 | O48: =M48^2 -> 0 | P48: =M48*N48 -> 0 | Q48: 0 | R48: =IF(M48>0,(N48-V$11-V$12*M48)/SQRT(V$14),0) -> 0 | S48: =IF(Data!B66>'B&R'!D$9,1,0) -> 0 | T48: =IF(S48=0,NA(),EXP(N48)/EXP(V$19)) -> 
M49: =IF(Data!B67>=D$9,Data!B67-D$9,0) -> 0 | N49: =IF(S49>0,LN(Data!J67),0) -> 0 | O49: 0 | P49: 0 | Q49: 0 | R49: 0 | S49: =IF(Data!B67>'B&R'!D$9,1,0) -> 0
M50: =IF(Data!B68>=D$9,Data!B68-D$9,0) -> 0 | N50: =IF(S50>0,LN(Data!J68),0) -> 0 | O50: 0 | P50: 0 | Q50: 0 | R50: 0 | S50: =IF(Data!B68>'B&R'!D$9,1,0) -> 0
M51: =IF(Data!B69>=D$9,Data!B69-D$9,0) -> 0 | N51: =IF(S51>0,LN(Data!J69),0) -> 0 | O51: 0 | P51: 0 | Q51: 0 | R51: 0 | S51: =IF(Data!B69>'B&R'!D$9,1,0) -> 0
M52: =IF(Data!B70>=D$9,Data!B70-D$9,0) -> 0 | N52: =IF(S52>0,LN(Data!J70),0) -> 0 | O52: 0 | P52: 0 | Q52: 0 | R52: 0 | S52: =IF(Data!B70>'B&R'!D$9,1,0) -> 0
M53: =IF(Data!B71>=D$9,Data!B71-D$9,0) -> 0 | N53: =IF(S53>0,LN(Data!J71),0) -> 0 | O53: 0 | P53: 0 | Q53: 0 | R53: 0 | S53: =IF(Data!B71>'B&R'!D$9,1,0) -> 0
M54: =IF(Data!B72>=D$9,Data!B72-D$9,0) -> 0 | N54: =IF(S54>0,LN(Data!J72),0) -> 0 | O54: 0 | P54: 0 | Q54: 0 | R54: 0 | S54: =IF(Data!B72>'B&R'!D$9,1,0) -> 0
M55: =IF(Data!B73>=D$9,Data!B73-D$9,0) -> 0 | N55: =IF(S55>0,LN(Data!J73),0) -> 0 | O55: 0 | P55: 0 | Q55: 0 | R55: 0 | S55: =IF(Data!B73>'B&R'!D$9,1,0) -> 0
M56: =IF(Data!B74>=D$9,Data!B74-D$9,0) -> 0 | N56: =IF(S56>0,LN(Data!J74),0) -> 0 | O56: 0 | P56: 0 | Q56: 0 | R56: 0 | S56: =IF(Data!B74>'B&R'!D$9,1,0) -> 0
M57: =IF(Data!B75>=D$9,Data!B75-D$9,0) -> 0 | N57: =IF(S57>0,LN(Data!J75),0) -> 0 | O57: 0 | P57: 0 | Q57: 0 | R57: 0 | S57: =IF(Data!B75>'B&R'!D$9,1,0) -> 0
M58: =IF(Data!B76>=D$9,Data!B76-D$9,0) -> 0 | N58: =IF(S58>0,LN(Data!J76),0) -> 0 | O58: 0 | P58: 0 | Q58: 0 | R58: 0 | S58: =IF(Data!B76>'B&R'!D$9,1,0) -> 0
M59: =IF(Data!B77>=D$9,Data!B77-D$9,0) -> 0 | N59: =IF(S59>0,LN(Data!J77),0) -> 0 | O59: 0 | P59: 0 | Q59: 0 | R59: 0 | S59: =IF(Data!B77>'B&R'!D$9,1,0) -> 0
M60: =IF(Data!B78>=D$9,Data!B78-D$9,0) -> 0 | N60: =IF(S60>0,LN(Data!J78),0) -> 0 | O60: 0 | P60: 0 | Q60: 0 | R60: 0 | S60: =IF(Data!B78>'B&R'!D$9,1,0) -> 0
M61: =IF(Data!B79>=D$9,Data!B79-D$9,0) -> 0 | N61: =IF(S61>0,LN(Data!J79),0) -> 0 | O61: =M61^2 -> 0 | P61: =M61*N61 -> 0 | Q61: 0 | R61: =IF(M61>0,(N61-V$11-V$12*M61)/SQRT(V$14),0) -> 0 | S61: =IF(Data!B79>'B&R'!D$9,1,0) -> 0 | T61: =IF(S61=0,NA(),EXP(N61)/EXP(V$19)) -> 
M62: =IF(Data!B80>=D$9,Data!B80-D$9,0) -> 0 | N62: =IF(S62>0,LN(Data!J80),0) -> 0 | O62: 0 | P62: 0 | Q62: 0 | R62: 0 | S62: =IF(Data!B80>'B&R'!D$9,1,0) -> 0
M63: =IF(Data!B81>=D$9,Data!B81-D$9,0) -> 0 | N63: =IF(S63>0,LN(Data!J81),0) -> 0 | O63: 0 | P63: 0 | Q63: 0 | R63: 0 | S63: =IF(Data!B81>'B&R'!D$9,1,0) -> 0
M64: =IF(Data!B82>=D$9,Data!B82-D$9,0) -> 0 | N64: =IF(S64>0,LN(Data!J82),0) -> 0 | O64: 0 | P64: 0 | Q64: 0 | R64: 0 | S64: =IF(Data!B82>'B&R'!D$9,1,0) -> 0

Sheet C&J
A1: Cooper and Jacob (1946)
A2: Well Designation: | C2: =IF(Data!B1 > 0,Data!B1,"") -> MW16 | W2: =E10 -> 13 | X2: =E9 -> 26 | Y2: 0
A3: Date: | C3: =IF(Data!B2 > 0,Data!B2,"") -> 2021-11-09 | P3: 0 | Q3: =MAX(P9:Q58) -> 1.734680326 | W3: =W2 -> 13 | X3: =X2 -> 26 | Y3: =J50 -> 70
P4: 0 | Q4: =Q3 -> 1.734680326
X5: =MAX(T9:T66)+10 -> 296
N7: Index | O7: ti | P7: Vi (meas) | Q7: Vi (calc) | R7: SE | T7: Time | U7: Qn/sn | W7: Index | X7: Time | Y7: Qn/sn | Z7: A-Time
B8: Enter early time cut-off for least-squares model fit
C9: Timecut (min): | E9: 26 | F9: <- Enter or change values here | N9: 1 | O9: =IF(Data!L25>=E$9,Data!L25-E$10,0) -> 0 | P9: =IF(O9>0,7.48*Data!M25*(Data!B25-Data!B24)/1440,0) -> 0 | Q9: =IF(O9>0,7.48*(4*PI()*(E$16/1440)*Data!N25)*(Data!B25-Data!B24)/LN(0.56146/((Data!P25^2*'C&J'!E$15)/(4*('C&J'!E$16/1440)*O9))),0) -> 0 | R9: =(P9-Q9)^2 -> 0 | T9: =Data!L25 -> 2 | U9: =Data!M25/Data!N25 -> 0 | W9: 0 | X9: =2+(X$5-2)*W9/50 -> 2 | Y9: =4*PI()*E$18/LN(0.56146/(Data!V$24^2*'C&J'!E$15/(4*'C&J'!E$18*'C&J'!X9/1440))) -> 10.73257492 | Z9: =X9+E$10 -> 15
B10: Time Adjustment (min): | E10: 13 | N10: 2 | O10: =IF(Data!L26>=E$9,Data!L26-E$10,0) -> 0 | P10: =IF(O10>0,P9+7.48*Data!M26*(Data!B26-Data!B25)/1440,0) -> 0 | Q10: =IF(O10>0,Q9+7.48*(4*PI()*(E$16/1440)*Data!N26)*(Data!B26-Data!B25)/LN(0.56146/((Data!P26^2*'C&J'!E$15)/(4*('C&J'!E$16/1440)*O10))),0) -> 0 | R10: =(P10-Q10)^2 -> 0 | T10: =Data!L26 -> 3.5 | U10: =Data!M26/Data!N26 -> 1.58421249 | W10: 1 | X10: =2+(X$5-2)*W10/50 -> 7.88 | Y10: =4*PI()*E$18/LN(0.56146/(Data!V$24^2*'C&J'!E$15/(4*'C&J'!E$18*'C&J'!X10/1440))) -> 7.30885569 | Z10: =X10+E$10 -> 20.88
N11: 3 | O11: =IF(Data!L27>=E$9,Data!L27-E$10,0) -> 0 | P11: =IF(O11>0,P10+7.48*Data!M27*(Data!B27-Data!B26)/1440,0) -> 0 | Q11: =IF(O11>0,Q10+7.48*(4*PI()*(E$16/1440)*Data!N27)*(Data!B27-Data!B26)/LN(0.56146/((Data!P27^2*'C&J'!E$15)/(4*('C&J'!E$16/1440)*O11))),0) -> 0 | R11: 0 | T11: =Data!L27 -> 4.5 | U11: =Data!M27/Data!N27 -> 0.6683973441 | W11: 2 | X11: 13.76 | Y11: =4*PI()*E$18/LN(0.56146/(Data!V$24^2*'C&J'!E$15/(4*'C&J'!E$18*'C&J'!X11/1440))) -> 6.469806673 | Z11: 26.76
B12: Trial Sn: | E12: d | F12: <-- Enter d for default or enter Sn value | N12: 4 | O12: =IF(Data!L28>=E$9,Data!L28-E$10,0) -> 0 | P12: =IF(O12>0,P11+7.48*Data!M28*(Data!B28-Data!B27)/1440,0) -> 0 | Q12: =IF(O12>0,Q11+7.48*(4*PI()*(E$16/1440)*Data!N28)*(Data!B28-Data!B27)/LN(0.56146/((Data!P28^2*'C&J'!E$15)/(4*('C&J'!E$16/1440)*O12))),0) -> 0 | R12: 0 | T12: =Data!L28 -> 5.5 | U12: =Data!M28/Data!N28 -> 1.647945176 | W12: 3 | X12: 19.64 | Y12: =4*PI()*E$18/LN(0.56146/(Data!V$24^2*'C&J'!E$15/(4*'C&J'!E$18*'C&J'!X12/1440))) -> 6.028102959 | Z12: 32.64
N13: 5 | O13: =IF(Data!L29>=E$9,Data!L29-E$10,0) -> 0 | P13: =IF(O13>0,P12+7.48*Data!M29*(Data!B29-Data!B28)/1440,0) -> 0 | Q13: =IF(O13>0,Q12+7.48*(4*PI()*(E$16/1440)*Data!N29)*(Data!B29-Data!B28)/LN(0.56146/((Data!P29^2*'C&J'!E$15)/(4*('C&J'!E$16/1440)*O13))),0) -> 0 | R13: 0 | T13: =Data!L29 -> 6.5 | U13: =Data!M29/Data!N29 -> -0.9853692804 | W13: 4 | X13: 25.52 | Y13: =4*PI()*E$18/LN(0.56146/(Data!V$24^2*'C&J'!E$15/(4*'C&J'!E$18*'C&J'!X13/1440))) -> 5.739670864 | Z13: 38.52
B14: Root-Mean-Square Error: | E14: =SQRT(SUM(R9:R58)) -> 3.472949262 | F14: <-- Minimize this using "Solver" | N14: 6 | O14: =IF(Data!L30>=E$9,Data!L30-E$10,0) -> 0 | P14: =IF(O14>0,P13+7.48*Data!M30*(Data!B30-Data!B29)/1440,0) -> 0 | Q14: =IF(O14>0,Q13+7.48*(4*PI()*(E$16/1440)*Data!N30)*(Data!B30-Data!B29)/LN(0.56146/((Data!P30^2*'C&J'!E$15)/(4*('C&J'!E$16/1440)*O14))),0) -> 0 | R14: 0 | T14: =Data!L30 -> 7.5 | U14: =Data!M30/Data!N30 -> 4.551467629 | W14: 5 | X14: 31.4 | Y14: =4*PI()*E$18/LN(0.56146/(Data!V$24^2*'C&J'!E$15/(4*'C&J'!E$18*'C&J'!X14/1440))) -> 5.530177317 | Z14: 44.4
E15: =IF(E12="d",0.025*SQRT(E16),E12) -> 0.03952847075 | F15: <-- Working Sn | N15: 7 | O15: =IF(Data!L31>=E$9,Data!L31-E$10,0) -> 0 | P15: =IF(O15>0,P14+7.48*Data!M31*(Data!B31-Data!B30)/1440,0) -> 0 | Q15: =IF(O15>0,Q14+7.48*(4*PI()*(E$16/1440)*Data!N31)*(Data!B31-Data!B30)/LN(0.56146/((Data!P31^2*'C&J'!E$15)/(4*('C&J'!E$16/1440)*O15))),0) -> 0 | R15: 0 | T15: =Data!L31 -> 8.5 | U15: =Data!M31/Data!N31 -> -1.241309353 | W15: 6 | X15: 37.28 | Y15: =4*PI()*E$18/LN(0.56146/(Data!V$24^2*'C&J'!E$15/(4*'C&J'!E$18*'C&J'!X15/1440))) -> 5.36798075 | Z15: 50.28
B16: Trial Tn (ft2/d): | E16: 2.5 | F16: <-- By changing Tn through "Solver" | N16: 8 | O16: =IF(Data!L32>=E$9,Data!L32-E$10,0) -> 0 | P16: =IF(O16>0,P15+7.48*Data!M32*(Data!B32-Data!B31)/1440,0) -> 0 | Q16: =IF(O16>0,Q15+7.48*(4*PI()*(E$16/1440)*Data!N32)*(Data!B32-Data!B31)/LN(0.56146/((Data!P32^2*'C&J'!E$15)/(4*('C&J'!E$16/1440)*O16))),0) -> 0 | R16: 0 | T16: =Data!L32 -> 9.5 | U16: =Data!M32/Data!N32 -> 3.927978912 | W16: 7 | X16: 43.16 | Y16: =4*PI()*E$18/LN(0.56146/(Data!V$24^2*'C&J'!E$15/(4*'C&J'!E$18*'C&J'!X16/1440))) -> 5.236927376 | Z16: 56.16
G17: Add constraint Tn > 0.00001 | N17: 9 | O17: =IF(Data!L33>=E$9,Data!L33-E$10,0) -> 0 | P17: =IF(O17>0,P16+7.48*Data!M33*(Data!B33-Data!B32)/1440,0) -> 0 | Q17: =IF(O17>0,Q16+7.48*(4*PI()*(E$16/1440)*Data!N33)*(Data!B33-Data!B32)/LN(0.56146/((Data!P33^2*'C&J'!E$15)/(4*('C&J'!E$16/1440)*O17))),0) -> 0 | R17: 0 | T17: =Data!L33 -> 10.5 | U17: =Data!M33/Data!N33 -> 2.811200594 | W17: 8 | X17: 49.04 | Y17: =4*PI()*E$18/LN(0.56146/(Data!V$24^2*'C&J'!E$15/(4*'C&J'!E$18*'C&J'!X17/1440))) -> 5.127753176 | Z17: 62.04
B18: Model Result: | D18: Tn (ft2/d) = | E18: =E16 -> 2.5 | N18: 10 | O18: =IF(Data!L34>=E$9,Data!L34-E$10,0) -> 0 | P18: =IF(O18>0,P17+7.48*Data!M34*(Data!B34-Data!B33)/1440,0) -> 0 | Q18: =IF(O18>0,Q17+7.48*(4*PI()*(E$16/1440)*Data!N34)*(Data!B34-Data!B33)/LN(0.56146/((Data!P34^2*'C&J'!E$15)/(4*('C&J'!E$16/1440)*O18))),0) -> 0 | R18: 0 | T18: =Data!L34 -> 12 | U18: =Data!M34/Data!N34 -> 0 | W18: 9 | X18: 54.92 | Y18: =4*PI()*E$18/LN(0.56146/(Data!V$24^2*'C&J'!E$15/(4*'C&J'!E$18*'C&J'!X18/1440))) -> 5.034694858 | Z18: 67.92
N19: 11 | O19: =IF(Data!L35>=E$9,Data!L35-E$10,0) -> 0 | P19: =IF(O19>0,P18+7.48*Data!M35*(Data!B35-Data!B34)/1440,0) -> 0 | Q19: =IF(O19>0,Q18+7.48*(4*PI()*(E$16/1440)*Data!N35)*(Data!B35-Data!B34)/LN(0.56146/((Data!P35^2*'C&J'!E$15)/(4*('C&J'!E$16/1440)*O19))),0) -> 0 | R19: 0 | T19: =Data!L35 -> 14 | U19: =Data!M35/Data!N35 -> 0.7585779381 | W19: 10 | X19: 60.8 | Y19: =4*PI()*E$18/LN(0.56146/(Data!V$24^2*'C&J'!E$15/(4*'C&J'!E$18*'C&J'!X19/1440))) -> 4.953943943 | Z19: 73.8
N20: 12 | O20: =IF(Data!L36>=E$9,Data!L36-E$10,0) -> 0 | P20: =IF(O20>0,P19+7.48*Data!M36*(Data!B36-Data!B35)/1440,0) -> 0 | Q20: =IF(O20>0,Q19+7.48*(4*PI()*(E$16/1440)*Data!N36)*(Data!B36-Data!B35)/LN(0.56146/((Data!P36^2*'C&J'!E$15)/(4*('C&J'!E$16/1440)*O20))),0) -> 0 | R20: 0 | T20: =Data!L36 -> 16 | U20: =Data!M36/Data!N36 -> 0.7834493459 | W20: 11 | X20: 66.68 | Y20: =4*PI()*E$18/LN(0.56146/(Data!V$24^2*'C&J'!E$15/(4*'C&J'!E$18*'C&J'!X20/1440))) -> 4.882863627 | Z20: 79.68
N21: 13 | O21: =IF(Data!L37>=E$9,Data!L37-E$10,0) -> 0 | P21: =IF(O21>0,P20+7.48*Data!M37*(Data!B37-Data!B36)/1440,0) -> 0 | Q21: =IF(O21>0,Q20+7.48*(4*PI()*(E$16/1440)*Data!N37)*(Data!B37-Data!B36)/LN(0.56146/((Data!P37^2*'C&J'!E$15)/(4*('C&J'!E$16/1440)*O21))),0) -> 0 | R21: 0 | T21: =Data!L37 -> 18 | U21: =Data!M37/Data!N37 -> 0 | W21: 12 | X21: 72.56 | Y21: =4*PI()*E$18/LN(0.56146/(Data!V$24^2*'C&J'!E$15/(4*'C&J'!E$18*'C&J'!X21/1440))) -> 4.819559254 | Z21: 85.56
N22: 14 | O22: =IF(Data!L38>=E$9,Data!L38-E$10,0) -> 0 | P22: =IF(O22>0,P21+7.48*Data!M38*(Data!B38-Data!B37)/1440,0) -> 0 | Q22: =IF(O22>0,Q21+7.48*(4*PI()*(E$16/1440)*Data!N38)*(Data!B38-Data!B37)/LN(0.56146/((Data!P38^2*'C&J'!E$15)/(4*('C&J'!E$16/1440)*O22))),0) -> 0 | R22: 0 | T22: =Data!L38 -> 20 | U22: =Data!M38/Data!N38 -> 0.8100069509 | W22: 13 | X22: 78.44 | Y22: =4*PI()*E$18/LN(0.56146/(Data!V$24^2*'C&J'!E$15/(4*'C&J'!E$18*'C&J'!X22/1440))) -> 4.76262756 | Z22: 91.44
N23: 15 | O23: =IF(Data!L39>=E$9,Data!L39-E$10,0) -> 13 | P23: =IF(O23>0,P22+7.48*Data!M39*(Data!B39-Data!B38)/1440,0) -> 0.004964892605 | Q23: =IF(O23>0,Q22+7.48*(4*PI()*(E$16/1440)*Data!N39)*(Data!B39-Data!B38)/LN(0.56146/((Data!P39^2*'C&J'!E$15)/(4*('C&J'!E$16/1440)*O23))),0) -> 0.09691406884 | R23: 0.008454651011 | T23: =Data!L39 -> 26 | U23: =Data!M39/Data!N39 -> 0.335371299 | W23: 14 | X23: 84.32 | Y23: =4*PI()*E$18/LN(0.56146/(Data!V$24^2*'C&J'!E$15/(4*'C&J'!E$18*'C&J'!X23/1440))) -> 4.711002712 | Z23: 97.32
N24: 16 | O24: =IF(Data!L40>=E$9,Data!L40-E$10,0) -> 23 | P24: =IF(O24>0,P23+7.48*Data!M40*(Data!B40-Data!B39)/1440,0) -> 0.004964892605 | Q24: =IF(O24>0,Q23+7.48*(4*PI()*(E$16/1440)*Data!N40)*(Data!B40-Data!B39)/LN(0.56146/((Data!P40^2*'C&J'!E$15)/(4*('C&J'!E$16/1440)*O24))),0) -> 0.1820107997 | R24: 0.03134525324 | T24: =Data!L40 -> 36 | U24: =Data!M40/Data!N40 -> 0 | W24: 15 | X24: 90.2 | Y24: =4*PI()*E$18/LN(0.56146/(Data!V$24^2*'C&J'!E$15/(4*'C&J'!E$18*'C&J'!X24/1440))) -> 4.663857748 | Z24: 103.2
N25: 17 | O25: =IF(Data!L41>=E$9,Data!L41-E$10,0) -> 33 | P25: =IF(O25>0,P24+7.48*Data!M41*(Data!B41-Data!B40)/1440,0) -> 0.02234201672 | Q25: =IF(O25>0,Q24+7.48*(4*PI()*(E$16/1440)*Data!N41)*(Data!B41-Data!B40)/LN(0.56146/((Data!P41^2*'C&J'!E$15)/(4*('C&J'!E$16/1440)*O25))),0) -> 0.2617465735 | R25: 0.0573145418 | T25: =Data!L41 -> 46 | U25: =Data!M41/Data!N41 -> 1.194760253 | W25: 16 | X25: 96.08 | Y25: =4*PI()*E$18/LN(0.56146/(Data!V$24^2*'C&J'!E$15/(4*'C&J'!E$18*'C&J'!X25/1440))) -> 4.620539241 | Z25: 109.08
N26: 18 | O26: =IF(Data!L42>=E$9,Data!L42-E$10,0) -> 43 | P26: =IF(O26>0,P25+7.48*Data!M42*(Data!B42-Data!B41)/1440,0) -> 0.007447338907 | Q26: =IF(O26>0,Q25+7.48*(4*PI()*(E$16/1440)*Data!N42)*(Data!B42-Data!B41)/LN(0.56146/((Data!P42^2*'C&J'!E$15)/(4*('C&J'!E$16/1440)*O26))),0) -> 0.3379619589 | R26: 0.109239914 | T26: =Data!L42 -> 56 | U26: =Data!M42/Data!N42 -> -1.024080216 | W26: 17 | X26: 101.96 | Y26: =4*PI()*E$18/LN(0.56146/(Data!V$24^2*'C&J'!E$15/(4*'C&J'!E$18*'C&J'!X26/1440))) -> 4.580522667 | Z26: 114.96
N27: 19 | O27: =IF(Data!L43>=E$9,Data!L43-E$10,0) -> 53 | P27: =IF(O27>0,P26+7.48*Data!M43*(Data!B43-Data!B42)/1440,0) -> 0.00992978521 | Q27: =IF(O27>0,Q26+7.48*(4*PI()*(E$16/1440)*Data!N43)*(Data!B43-Data!B42)/LN(0.56146/((Data!P43^2*'C&J'!E$15)/(4*('C&J'!E$16/1440)*O27))),0) -> 0.4102936795 | R27: 0.1602912478 | T27: =Data!L43 -> 66 | U27: =Data!M43/Data!N43 -> 0.1737833095 | W27: 18 | X27: 107.84 | Y27: =4*PI()*E$18/LN(0.56146/(Data!V$24^2*'C&J'!E$15/(4*'C&J'!E$18*'C&J'!X27/1440))) -> 4.543381126 | Z27: 120.84
N28: 20 | O28: =IF(Data!L44>=E$9,Data!L44-E$10,0) -> 63 | P28: =IF(O28>0,P27+7.48*Data!M44*(Data!B44-Data!B43)/1440,0) -> 0.00992978521 | Q28: =IF(O28>0,Q27+7.48*(4*PI()*(E$16/1440)*Data!N44)*(Data!B44-Data!B43)/LN(0.56146/((Data!P44^2*'C&J'!E$15)/(4*('C&J'!E$16/1440)*O28))),0) -> 0.4793854807 | R28: 0.2203886501 | T28: =Data!L44 -> 76 | U28: =Data!M44/Data!N44 -> 0 | W28: 19 | X28: 113.72 | Y28: =4*PI()*E$18/LN(0.56146/(Data!V$24^2*'C&J'!E$15/(4*'C&J'!E$18*'C&J'!X28/1440))) -> 4.508762912 | Z28: 126.72
N29: 21 | O29: =IF(Data!L45>=E$9,Data!L45-E$10,0) -> 73 | P29: =IF(O29>0,P28+7.48*Data!M45*(Data!B45-Data!B44)/1440,0) -> 0.01241223151 | Q29: =IF(O29>0,Q28+7.48*(4*PI()*(E$16/1440)*Data!N45)*(Data!B45-Data!B44)/LN(0.56146/((Data!P45^2*'C&J'!E$15)/(4*('C&J'!E$16/1440)*O29))),0) -> 0.5469171657 | R29: 0.2856955247 | T29: =Data!L45 -> 86 | U29: =Data!M45/Data!N45 -> 0.1770015189 | W29: 20 | X29: 119.6 | Y29: =4*PI()*E$18/LN(0.56146/(Data!V$24^2*'C&J'!E$15/(4*'C&J'!E$18*'C&J'!X29/1440))) -> 4.476375122 | Z29: 132.6
N30: 22 | O30: =IF(Data!L46>=E$9,Data!L46-E$10,0) -> 93 | P30: =IF(O30>0,P29+7.48*Data!M46*(Data!B46-Data!B45)/1440,0) -> 0.01737712412 | Q30: =IF(O30>0,Q29+7.48*(4*PI()*(E$16/1440)*Data!N46)*(Data!B46-Data!B45)/LN(0.56146/((Data!P46^2*'C&J'!E$15)/(4*('C&J'!E$16/1440)*O30))),0) -> 0.7386449426 | R30: 0.520227266 | T30: =Data!L46 -> 106 | U30: =Data!M46/Data!N46 -> 0.1202274468 | W30: 21 | X30: 125.48 | Y30: =4*PI()*E$18/LN(0.56146/(Data!V$24^2*'C&J'!E$15/(4*'C&J'!E$18*'C&J'!X30/1440))) -> 4.445971447 | Z30: 138.48
N31: 23 | O31: =IF(Data!L47>=E$9,Data!L47-E$10,0) -> 123 | P31: =IF(O31>0,P30+7.48*Data!M47*(Data!B47-Data!B46)/1440,0) -> 0.05709626496 | Q31: =IF(O31>0,Q30+7.48*(4*PI()*(E$16/1440)*Data!N47)*(Data!B47-Data!B46)/LN(0.56146/((Data!P47^2*'C&J'!E$15)/(4*('C&J'!E$16/1440)*O31))),0) -> 0.919291215 | R31: 0.7433801319 | T31: =Data!L47 -> 136 | U31: =Data!M47/Data!N47 -> 0.9803161046 | W31: 22 | X31: 131.36 | Y31: =4*PI()*E$18/LN(0.56146/(Data!V$24^2*'C&J'!E$15/(4*'C&J'!E$18*'C&J'!X31/1440))) -> 4.417342956 | Z31: 144.36
N32: 24 | O32: =IF(Data!L48>=E$9,Data!L48-E$10,0) -> 153 | P32: =IF(O32>0,P31+7.48*Data!M48*(Data!B48-Data!B47)/1440,0) -> 0.02482446302 | Q32: =IF(O32>0,Q31+7.48*(4*PI()*(E$16/1440)*Data!N48)*(Data!B48-Data!B47)/LN(0.56146/((Data!P48^2*'C&J'!E$15)/(4*('C&J'!E$16/1440)*O32))),0) -> 1.094510138 | R32: 1.144227443 | T32: =Data!L48 -> 166 | U32: =Data!M48/Data!N48 -> -0.796506835 | W32: 23 | X32: 137.24 | Y32: =4*PI()*E$18/LN(0.56146/(Data!V$24^2*'C&J'!E$15/(4*'C&J'!E$18*'C&J'!X32/1440))) -> 4.390311014 | Z32: 150.24
N33: 25 | O33: =IF(Data!L49>=E$9,Data!L49-E$10,0) -> 183 | P33: =IF(O33>0,P32+7.48*Data!M49*(Data!B49-Data!B48)/1440,0) -> 0.02730690933 | Q33: =IF(O33>0,Q32+7.48*(4*PI()*(E$16/1440)*Data!N49)*(Data!B49-Data!B48)/LN(0.56146/((Data!P49^2*'C&J'!E$15)/(4*('C&J'!E$16/1440)*O33))),0) -> 1.262225747 | R33: 1.525024537 | T33: =Data!L49 -> 196 | U33: =Data!M49/Data!N49 -> 0.06247112432 | W33: 24 | X33: 143.12 | Y33: =4*PI()*E$18/LN(0.56146/(Data!V$24^2*'C&J'!E$15/(4*'C&J'!E$18*'C&J'!X33/1440))) -> 4.364721801 | Z33: 156.12
N34: 26 | O34: =IF(Data!L50>=E$9,Data!L50-E$10,0) -> 213 | P34: =IF(O34>0,P33+7.48*Data!M50*(Data!B50-Data!B49)/1440,0) -> 0.02730690933 | Q34: =IF(O34>0,Q33+7.48*(4*PI()*(E$16/1440)*Data!N50)*(Data!B50-Data!B49)/LN(0.56146/((Data!P50^2*'C&J'!E$15)/(4*('C&J'!E$16/1440)*O34))),0) -> 1.423366439 | R34: 1.948982211 | T34: =Data!L50 -> 226 | U34: =Data!M50/Data!N50 -> 0 | W34: 25 | X34: 149 | Y34: =4*PI()*E$18/LN(0.56146/(Data!V$24^2*'C&J'!E$15/(4*'C&J'!E$18*'C&J'!X34/1440))) -> 4.340441987 | Z34: 162
N35: 27 | O35: =IF(Data!L51>=E$9,Data!L51-E$10,0) -> 243 | P35: =IF(O35>0,P34+7.48*Data!M51*(Data!B51-Data!B50)/1440,0) -> 0.02978935563 | Q35: =IF(O35>0,Q34+7.48*(4*PI()*(E$16/1440)*Data!N51)*(Data!B51-Data!B50)/LN(0.56146/((Data!P51^2*'C&J'!E$15)/(4*('C&J'!E$16/1440)*O35))),0) -> 1.581759209 | R35: 2.408610425 | T35: =Data!L51 -> 256 | U35: =Data!M51/Data!N51 -> 0.0637205468 | W35: 26 | X35: 154.88 | Y35: =4*PI()*E$18/LN(0.56146/(Data!V$24^2*'C&J'!E$15/(4*'C&J'!E$18*'C&J'!X35/1440))) -> 4.317355318 | Z35: 167.88
N36: 28 | O36: =IF(Data!L52>=E$9,Data!L52-E$10,0) -> 273 | P36: =IF(O36>0,P35+7.48*Data!M52*(Data!B52-Data!B51)/1440,0) -> 0.03227180193 | Q36: =IF(O36>0,Q35+7.48*(4*PI()*(E$16/1440)*Data!N52)*(Data!B52-Data!B51)/LN(0.56146/((Data!P52^2*'C&J'!E$15)/(4*('C&J'!E$16/1440)*O36))),0) -> 1.734680326 | R36: 2.898194782 | T36: =Data!L52 -> 286 | U36: =Data!M52/Data!N52 -> 0.06502096612 | W36: 27 | X36: 160.76 | Y36: =4*PI()*E$18/LN(0.56146/(Data!V$24^2*'C&J'!E$15/(4*'C&J'!E$18*'C&J'!X36/1440))) -> 4.29535986 | Z36: 173.76
N37: 29 | O37: =IF(Data!L53>=E$9,Data!L53-E$10,0) -> 0 | P37: =IF(O37>0,P36+7.48*Data!M53*(Data!B53-Data!B52)/1440,0) -> 0 | Q37: =IF(O37>0,Q36+7.48*(4*PI()*(E$16/1440)*Data!N53)*(Data!B53-Data!B52)/LN(0.56146/((Data!P53^2*'C&J'!E$15)/(4*('C&J'!E$16/1440)*O37))),0) -> 0 | R37: 0 | T37: =Data!L53 -> 0 | U37: =Data!M53/Data!N53 ->  | W37: 28 | X37: 166.64 | Y37: =4*PI()*E$18/LN(0.56146/(Data!V$24^2*'C&J'!E$15/(4*'C&J'!E$18*'C&J'!X37/1440))) -> 4.274365786 | Z37: 179.64
N38: 30 | O38: =IF(Data!L54>=E$9,Data!L54-E$10,0) -> 0 | P38: =IF(O38>0,P37+7.48*Data!M54*(Data!B54-Data!B53)/1440,0) -> 0 | Q38: =IF(O38>0,Q37+7.48*(4*PI()*(E$16/1440)*Data!N54)*(Data!B54-Data!B53)/LN(0.56146/((Data!P54^2*'C&J'!E$15)/(4*('C&J'!E$16/1440)*O38))),0) -> 0 | R38: 0 | T38: =Data!L54 -> 0 | U38: =Data!M54/Data!N54 ->  | W38: 29 | X38: 172.52 | Y38: =4*PI()*E$18/LN(0.56146/(Data!V$24^2*'C&J'!E$15/(4*'C&J'!E$18*'C&J'!X38/1440))) -> 4.254293563 | Z38: 185.52
N39: 31 | O39: =IF(Data!L55>=E$9,Data!L55-E$10,0) -> 0 | P39: =IF(O39>0,P38+7.48*Data!M55*(Data!B55-Data!B54)/1440,0) -> 0 | Q39: =IF(O39>0,Q38+7.48*(4*PI()*(E$16/1440)*Data!N55)*(Data!B55-Data!B54)/LN(0.56146/((Data!P55^2*'C&J'!E$15)/(4*('C&J'!E$16/1440)*O39))),0) -> 0 | R39: 0 | T39: =Data!L55 -> 0 | U39: =Data!M55/Data!N55 ->  | W39: 30 | X39: 178.4 | Y39: =4*PI()*E$18/LN(0.56146/(Data!V$24^2*'C&J'!E$15/(4*'C&J'!E$18*'C&J'!X39/1440))) -> 4.235072461 | Z39: 191.4
N40: 32 | O40: =IF(Data!L56>=E$9,Data!L56-E$10,0) -> 0 | P40: =IF(O40>0,P39+7.48*Data!M56*(Data!B56-Data!B55)/1440,0) -> 0 | Q40: =IF(O40>0,Q39+7.48*(4*PI()*(E$16/1440)*Data!N56)*(Data!B56-Data!B55)/LN(0.56146/((Data!P56^2*'C&J'!E$15)/(4*('C&J'!E$16/1440)*O40))),0) -> 0 | R40: 0 | T40: =Data!L56 -> 0 | U40: =Data!M56/Data!N56 ->  | W40: 31 | X40: 184.28 | Y40: =4*PI()*E$18/LN(0.56146/(Data!V$24^2*'C&J'!E$15/(4*'C&J'!E$18*'C&J'!X40/1440))) -> 4.216639326 | Z40: 197.28
N41: 33 | O41: =IF(Data!L57>=E$9,Data!L57-E$10,0) -> 0 | P41: =IF(O41>0,P40+7.48*Data!M57*(Data!B57-Data!B56)/1440,0) -> 0 | Q41: =IF(O41>0,Q40+7.48*(4*PI()*(E$16/1440)*Data!N57)*(Data!B57-Data!B56)/LN(0.56146/((Data!P57^2*'C&J'!E$15)/(4*('C&J'!E$16/1440)*O41))),0) -> 0 | R41: 0 | T41: =Data!L57 -> 0 | U41: =Data!M57/Data!N57 ->  | W41: 32 | X41: 190.16 | Y41: =4*PI()*E$18/LN(0.56146/(Data!V$24^2*'C&J'!E$15/(4*'C&J'!E$18*'C&J'!X41/1440))) -> 4.198937553 | Z41: 203.16
N42: 34 | O42: =IF(Data!L58>=E$9,Data!L58-E$10,0) -> 0 | P42: =IF(O42>0,P41+7.48*Data!M58*(Data!B58-Data!B57)/1440,0) -> 0 | Q42: =IF(O42>0,Q41+7.48*(4*PI()*(E$16/1440)*Data!N58)*(Data!B58-Data!B57)/LN(0.56146/((Data!P58^2*'C&J'!E$15)/(4*('C&J'!E$16/1440)*O42))),0) -> 0 | R42: 0 | T42: =Data!L58 -> 0 | U42: =Data!M58/Data!N58 ->  | W42: 33 | X42: 196.04 | Y42: =4*PI()*E$18/LN(0.56146/(Data!V$24^2*'C&J'!E$15/(4*'C&J'!E$18*'C&J'!X42/1440))) -> 4.181916223 | Z42: 209.04
N43: 35 | O43: =IF(Data!L59>=E$9,Data!L59-E$10,0) -> 0 | P43: =IF(O43>0,P42+7.48*Data!M59*(Data!B59-Data!B58)/1440,0) -> 0 | Q43: =IF(O43>0,Q42+7.48*(4*PI()*(E$16/1440)*Data!N59)*(Data!B59-Data!B58)/LN(0.56146/((Data!P59^2*'C&J'!E$15)/(4*('C&J'!E$16/1440)*O43))),0) -> 0 | R43: 0 | T43: =Data!L59 -> 0 | U43: =Data!M59/Data!N59 ->  | W43: 34 | X43: 201.92 | Y43: =4*PI()*E$18/LN(0.56146/(Data!V$24^2*'C&J'!E$15/(4*'C&J'!E$18*'C&J'!X43/1440))) -> 4.165529385 | Z43: 214.92
N44: 36 | O44: =IF(Data!L60>=E$9,Data!L60-E$10,0) -> 0 | P44: =IF(O44>0,P43+7.48*Data!M60*(Data!B60-Data!B59)/1440,0) -> 0 | Q44: =IF(O44>0,Q43+7.48*(4*PI()*(E$16/1440)*Data!N60)*(Data!B60-Data!B59)/LN(0.56146/((Data!P60^2*'C&J'!E$15)/(4*('C&J'!E$16/1440)*O44))),0) -> 0 | R44: 0 | T44: =Data!L60 -> 0 | U44: =Data!M60/Data!N60 ->  | W44: 35 | X44: 207.8 | Y44: =4*PI()*E$18/LN(0.56146/(Data!V$24^2*'C&J'!E$15/(4*'C&J'!E$18*'C&J'!X44/1440))) -> 4.149735436 | Z44: 220.8
N45: 37 | O45: =IF(Data!L61>=E$9,Data!L61-E$10,0) -> 0 | P45: =IF(O45>0,P44+7.48*Data!M61*(Data!B61-Data!B60)/1440,0) -> 0 | Q45: =IF(O45>0,Q44+7.48*(4*PI()*(E$16/1440)*Data!N61)*(Data!B61-Data!B60)/LN(0.56146/((Data!P61^2*'C&J'!E$15)/(4*('C&J'!E$16/1440)*O45))),0) -> 0 | R45: 0 | T45: =Data!L61 -> 0 | U45: =Data!M61/Data!N61 ->  | W45: 36 | X45: 213.68 | Y45: =4*PI()*E$18/LN(0.56146/(Data!V$24^2*'C&J'!E$15/(4*'C&J'!E$18*'C&J'!X45/1440))) -> 4.134496604 | Z45: 226.68
N46: 38 | O46: =IF(Data!L62>=E$9,Data!L62-E$10,0) -> 0 | P46: =IF(O46>0,P45+7.48*Data!M62*(Data!B62-Data!B61)/1440,0) -> 0 | Q46: =IF(O46>0,Q45+7.48*(4*PI()*(E$16/1440)*Data!N62)*(Data!B62-Data!B61)/LN(0.56146/((Data!P62^2*'C&J'!E$15)/(4*('C&J'!E$16/1440)*O46))),0) -> 0 | R46: 0 | T46: =Data!L62 -> 0 | U46: =Data!M62/Data!N62 ->  | W46: 37 | X46: 219.56 | Y46: =4*PI()*E$18/LN(0.56146/(Data!V$24^2*'C&J'!E$15/(4*'C&J'!E$18*'C&J'!X46/1440))) -> 4.119778492 | Z46: 232.56
N47: 39 | O47: =IF(Data!L63>=E$9,Data!L63-E$10,0) -> 0 | P47: =IF(O47>0,P46+7.48*Data!M63*(Data!B63-Data!B62)/1440,0) -> 0 | Q47: =IF(O47>0,Q46+7.48*(4*PI()*(E$16/1440)*Data!N63)*(Data!B63-Data!B62)/LN(0.56146/((Data!P63^2*'C&J'!E$15)/(4*('C&J'!E$16/1440)*O47))),0) -> 0 | R47: 0 | T47: =Data!L63 -> 0 | U47: =Data!M63/Data!N63 ->  | W47: 38 | X47: 225.44 | Y47: =4*PI()*E$18/LN(0.56146/(Data!V$24^2*'C&J'!E$15/(4*'C&J'!E$18*'C&J'!X47/1440))) -> 4.105549705 | Z47: 238.44
N48: 40 | O48: =IF(Data!L64>=E$9,Data!L64-E$10,0) -> 0 | P48: =IF(O48>0,P47+7.48*Data!M64*(Data!B64-Data!B63)/1440,0) -> 0 | Q48: =IF(O48>0,Q47+7.48*(4*PI()*(E$16/1440)*Data!N64)*(Data!B64-Data!B63)/LN(0.56146/((Data!P64^2*'C&J'!E$15)/(4*('C&J'!E$16/1440)*O48))),0) -> 0 | R48: 0 | T48: =Data!L64 -> 0 | U48: =Data!M64/Data!N64 ->  | W48: 39 | X48: 231.32 | Y48: =4*PI()*E$18/LN(0.56146/(Data!V$24^2*'C&J'!E$15/(4*'C&J'!E$18*'C&J'!X48/1440))) -> 4.091781506 | Z48: 244.32
J49: Height | N49: 41 | O49: =IF(Data!L65>=E$9,Data!L65-E$10,0) -> 0 | P49: =IF(O49>0,P48+7.48*Data!M65*(Data!B65-Data!B64)/1440,0) -> 0 | Q49: =IF(O49>0,Q48+7.48*(4*PI()*(E$16/1440)*Data!N65)*(Data!B65-Data!B64)/LN(0.56146/((Data!P65^2*'C&J'!E$15)/(4*('C&J'!E$16/1440)*O49))),0) -> 0 | R49: 0 | T49: =Data!L65 -> 0 | U49: =Data!M65/Data!N65 ->  | W49: 40 | X49: 237.2 | Y49: =4*PI()*E$18/LN(0.56146/(Data!V$24^2*'C&J'!E$15/(4*'C&J'!E$18*'C&J'!X49/1440))) -> 4.078447537 | Z49: 250.2
J50: 70 | N50: 42 | O50: =IF(Data!L66>=E$9,Data!L66-E$10,0) -> 0 | P50: =IF(O50>0,P49+7.48*Data!M66*(Data!B66-Data!B65)/1440,0) -> 0 | Q50: =IF(O50>0,Q49+7.48*(4*PI()*(E$16/1440)*Data!N66)*(Data!B66-Data!B65)/LN(0.56146/((Data!P66^2*'C&J'!E$15)/(4*('C&J'!E$16/1440)*O50))),0) -> 0 | R50: 0 | T50: =Data!L66 -> 0 | U50: =Data!M66/Data!N66 ->  | W50: 41 | X50: 243.08 | Y50: =4*PI()*E$18/LN(0.56146/(Data!V$24^2*'C&J'!E$15/(4*'C&J'!E$18*'C&J'!X50/1440))) -> 4.065523565 | Z50: 256.08
N51: 43 | O51: =IF(Data!L67>=E$9,Data!L67-E$10,0) -> 0 | P51: =IF(O51>0,P50+7.48*Data!M67*(Data!B67-Data!B66)/1440,0) -> 0 | Q51: =IF(O51>0,Q50+7.48*(4*PI()*(E$16/1440)*Data!N67)*(Data!B67-Data!B66)/LN(0.56146/((Data!P67^2*'C&J'!E$15)/(4*('C&J'!E$16/1440)*O51))),0) -> 0 | R51: 0 | T51: =Data!L67 -> 0 | U51: =Data!M67/Data!N67 ->  | W51: 42 | X51: 248.96 | Y51: =4*PI()*E$18/LN(0.56146/(Data!V$24^2*'C&J'!E$15/(4*'C&J'!E$18*'C&J'!X51/1440))) -> 4.052987264 | Z51: 261.96
N52: 44 | O52: =IF(Data!L68>=E$9,Data!L68-E$10,0) -> 0 | P52: =IF(O52>0,P51+7.48*Data!M68*(Data!B68-Data!B67)/1440,0) -> 0 | Q52: =IF(O52>0,Q51+7.48*(4*PI()*(E$16/1440)*Data!N68)*(Data!B68-Data!B67)/LN(0.56146/((Data!P68^2*'C&J'!E$15)/(4*('C&J'!E$16/1440)*O52))),0) -> 0 | R52: 0 | T52: =Data!L68 -> 0 | U52: =Data!M68/Data!N68 ->  | W52: 43 | X52: 254.84 | Y52: =4*PI()*E$18/LN(0.56146/(Data!V$24^2*'C&J'!E$15/(4*'C&J'!E$18*'C&J'!X52/1440))) -> 4.040818021 | Z52: 267.84
N53: 45 | O53: =IF(Data!L69>=E$9,Data!L69-E$10,0) -> 0 | P53: =IF(O53>0,P52+7.48*Data!M69*(Data!B69-Data!B68)/1440,0) -> 0 | Q53: =IF(O53>0,Q52+7.48*(4*PI()*(E$16/1440)*Data!N69)*(Data!B69-Data!B68)/LN(0.56146/((Data!P69^2*'C&J'!E$15)/(4*('C&J'!E$16/1440)*O53))),0) -> 0 | R53: 0 | T53: =Data!L69 -> 0 | U53: =Data!M69/Data!N69 ->  | W53: 44 | X53: 260.72 | Y53: =4*PI()*E$18/LN(0.56146/(Data!V$24^2*'C&J'!E$15/(4*'C&J'!E$18*'C&J'!X53/1440))) -> 4.028996775 | Z53: 273.72
N54: 46 | O54: =IF(Data!L70>=E$9,Data!L70-E$10,0) -> 0 | P54: =IF(O54>0,P53+7.48*Data!M70*(Data!B70-Data!B69)/1440,0) -> 0 | Q54: =IF(O54>0,Q53+7.48*(4*PI()*(E$16/1440)*Data!N70)*(Data!B70-Data!B69)/LN(0.56146/((Data!P70^2*'C&J'!E$15)/(4*('C&J'!E$16/1440)*O54))),0) -> 0 | R54: 0 | T54: =Data!L70 -> 0 | U54: =Data!M70/Data!N70 ->  | W54: 45 | X54: 266.6 | Y54: =4*PI()*E$18/LN(0.56146/(Data!V$24^2*'C&J'!E$15/(4*'C&J'!E$18*'C&J'!X54/1440))) -> 4.017505859 | Z54: 279.6
N55: 47 | O55: =IF(Data!L71>=E$9,Data!L71-E$10,0) -> 0 | P55: =IF(O55>0,P54+7.48*Data!M71*(Data!B71-Data!B70)/1440,0) -> 0 | Q55: =IF(O55>0,Q54+7.48*(4*PI()*(E$16/1440)*Data!N71)*(Data!B71-Data!B70)/LN(0.56146/((Data!P71^2*'C&J'!E$15)/(4*('C&J'!E$16/1440)*O55))),0) -> 0 | R55: 0 | T55: =Data!L71 -> 0 | U55: =Data!M71/Data!N71 ->  | W55: 46 | X55: 272.48 | Y55: =4*PI()*E$18/LN(0.56146/(Data!V$24^2*'C&J'!E$15/(4*'C&J'!E$18*'C&J'!X55/1440))) -> 4.006328876 | Z55: 285.48
N56: 48 | O56: =IF(Data!L72>=E$9,Data!L72-E$10,0) -> 0 | P56: =IF(O56>0,P55+7.48*Data!M72*(Data!B72-Data!B71)/1440,0) -> 0 | Q56: =IF(O56>0,Q55+7.48*(4*PI()*(E$16/1440)*Data!N72)*(Data!B72-Data!B71)/LN(0.56146/((Data!P72^2*'C&J'!E$15)/(4*('C&J'!E$16/1440)*O56))),0) -> 0 | R56: 0 | T56: =Data!L72 -> 0 | U56: =Data!M72/Data!N72 ->  | W56: 47 | X56: 278.36 | Y56: =4*PI()*E$18/LN(0.56146/(Data!V$24^2*'C&J'!E$15/(4*'C&J'!E$18*'C&J'!X56/1440))) -> 3.995450581 | Z56: 291.36
N57: 49 | O57: =IF(Data!L73>=E$9,Data!L73-E$10,0) -> 0 | P57: =IF(O57>0,P56+7.48*Data!M73*(Data!B73-Data!B72)/1440,0) -> 0 | Q57: =IF(O57>0,Q56+7.48*(4*PI()*(E$16/1440)*Data!N73)*(Data!B73-Data!B72)/LN(0.56146/((Data!P73^2*'C&J'!E$15)/(4*('C&J'!E$16/1440)*O57))),0) -> 0 | R57: 0 | T57: =Data!L73 -> 0 | U57: =Data!M73/Data!N73 ->  | W57: 48 | X57: 284.24 | Y57: =4*PI()*E$18/LN(0.56146/(Data!V$24^2*'C&J'!E$15/(4*'C&J'!E$18*'C&J'!X57/1440))) -> 3.984856775 | Z57: 297.24
N58: 50 | O58: =IF(Data!L74>=E$9,Data!L74-E$10,0) -> 0 | P58: =IF(O58>0,P57+7.48*Data!M74*(Data!B74-Data!B73)/1440,0) -> 0 | Q58: =IF(O58>0,Q57+7.48*(4*PI()*(E$16/1440)*Data!N74)*(Data!B74-Data!B73)/LN(0.56146/((Data!P74^2*'C&J'!E$15)/(4*('C&J'!E$16/1440)*O58))),0) -> 0 | R58: 0 | T58: =Data!L74 -> 0 | U58: =Data!M74/Data!N74 ->  | W58: 49 | X58: 290.12 | Y58: =4*PI()*E$18/LN(0.56146/(Data!V$24^2*'C&J'!E$15/(4*'C&J'!E$18*'C&J'!X58/1440))) -> 3.974534216 | Z58: 303.12
T59: =Data!L75 -> 0 | U59: =Data!M75/Data!N75 ->  | W59: 50 | X59: 296 | Y59: =4*PI()*E$18/LN(0.56146/(Data!V$24^2*'C&J'!E$15/(4*'C&J'!E$18*'C&J'!X59/1440))) -> 3.964470534 | Z59: 309
T60: =Data!L76 -> 0 | U60: =Data!M76/Data!N76 -> 
T61: =Data!L77 -> 0 | U61: =Data!M77/Data!N77 -> 
T62: =Data!L78 -> 0 | U62: =Data!M78/Data!N78 -> 
T63: =Data!L79 -> 0 | U63: =Data!M79/Data!N79 -> 
T64: =Data!L80 -> 0 | U64: =Data!M80/Data!N80 -> 
T65: =Data!L81 -> 0 | U65: =Data!M81/Data!N81 -> 
T66: =Data!L82 -> 0 | U66: =Data!M82/Data!N82 -> 

Sheet CB&P
A1: Cooper, Bredehoeft and Papadopulos (1967)
A2: Well Designation: | C2: =IF(Data!B1 > 0,Data!B1,"") -> MW16 | P2: e | Q2: 1e-06
A3: Date: | C3: =IF(Data!B2 > 0,Data!B2,"") -> 2021-11-09
B5: Enter early time cut-off for least-squares model fit
C6: Timecut (min): | E6: 0 | F6: <- Enter or change values here | N6: Count | O6: Time | P6: H/Ho | Q6: G (a,b,e) | R6: SE | X6: Time | Y6: H/Ho
B7: Initial Drawdown sn (ft): | E7: 0 | O7: (min) | T7: Index | U7: Time (min) | V7: G( ) | X7: (min)
N8: =IF(O8>0,1,0) -> 1 | O8: =IF(Data!B24>E$6,Data!B24-E$6,0) -> 1 | P8: =IF(N8>0,Data!J24/'CB&P'!E$7,0) ->  | Q8: =IF(N8>0,G(E$14,((-J$20)*'CB&P'!E$13/1440)*'CB&P'!O8/Data!V$24^2,'CB&P'!Q$2),0) ->  | R8: =N8*(P8-Q8)^2 ->  | T8: 0 | U8: =EXP(LN(J$15)+(LN(J$16)-LN(J$15))*T8/100) -> 3 | V8: =G('CB&P'!E$14,((-J$20)*'CB&P'!E$13/1440)*'CB&P'!U8/Data!V$24^2,0.00001) ->  | X8: =IF(N8>0,O8,NA()) -> 1 | Y8: =IF(N8>0,P8,NA()) -> 
B9: Trial Sn: | E9: d | F9: <-- Enter d for default | N9: =IF(O9>0,1,0) -> 1 | O9: =IF(Data!B25>E$6,Data!B25-E$6,0) -> 3 | P9: =IF(N9>0,Data!J25/'CB&P'!E$7,0) ->  | Q9: =IF(N9>0,G(E$14,((-J$20)*'CB&P'!E$13/1440)*'CB&P'!O9/Data!V$24^2,'CB&P'!Q$2),0) ->  | R9: =N9*(P9-Q9)^2 ->  | T9: 1 | U9: 3.133049962 | V9: =G('CB&P'!E$14,((-J$20)*'CB&P'!E$13/1440)*'CB&P'!U9/Data!V$24^2,0.00001) ->  | X9: =IF(N9>0,O9,NA()) -> 3 | Y9: =IF(N9>0,P9,NA()) -> 
N10: 1 | O10: =IF(Data!B26>E$6,Data!B26-E$6,0) -> 4 | P10: =IF(N10>0,Data!J26/'CB&P'!E$7,0) ->  | Q10: =IF(N10>0,G(E$14,((-J$20)*'CB&P'!E$13/1440)*'CB&P'!O10/Data!V$24^2,'CB&P'!Q$2),0) ->  | T10: 2 | U10: 3.272000688 | V10: =G('CB&P'!E$14,((-J$20)*'CB&P'!E$13/1440)*'CB&P'!U10/Data!V$24^2,0.00001) ->  | X10: 4
B11: Root-Mean-Square Error: | E11: =SQRT(SUM(R8:R48)) ->  | F11: <-- Minimize this using "Solver" | N11: 1 | O11: =IF(Data!B27>E$6,Data!B27-E$6,0) -> 5 | P11: =IF(N11>0,Data!J27/'CB&P'!E$7,0) ->  | Q11: =IF(N11>0,G(E$14,((-J$20)*'CB&P'!E$13/1440)*'CB&P'!O11/Data!V$24^2,'CB&P'!Q$2),0) ->  | T11: 3 | U11: 3.417113877 | V11: =G('CB&P'!E$14,((-J$20)*'CB&P'!E$13/1440)*'CB&P'!U11/Data!V$24^2,0.00001) ->  | X11: 5
N12: 1 | O12: =IF(Data!B28>E$6,Data!B28-E$6,0) -> 6 | P12: =IF(N12>0,Data!J28/'CB&P'!E$7,0) ->  | Q12: =IF(N12>0,G(E$14,((-J$20)*'CB&P'!E$13/1440)*'CB&P'!O12/Data!V$24^2,'CB&P'!Q$2),0) ->  | T12: 4 | U12: 3.568662835 | V12: =G('CB&P'!E$14,((-J$20)*'CB&P'!E$13/1440)*'CB&P'!U12/Data!V$24^2,0.00001) ->  | X12: 6
B13: Trial Tn (ft2/d): | E13: 2.5 | F13: <-- By changing Tn through "Solver" | N13: 1 | O13: =IF(Data!B29>E$6,Data!B29-E$6,0) -> 7 | P13: =IF(N13>0,Data!J29/'CB&P'!E$7,0) ->  | Q13: =IF(N13>0,G(E$14,((-J$20)*'CB&P'!E$13/1440)*'CB&P'!O13/Data!V$24^2,'CB&P'!Q$2),0) ->  | T13: 5 | U13: 3.726932986 | V13: =G('CB&P'!E$14,((-J$20)*'CB&P'!E$13/1440)*'CB&P'!U13/Data!V$24^2,0.00001) ->  | X13: 7
E14: =IF(E9="d",0.025*SQRT(E13),E9) -> 0.03952847075 | F14: <-- Working Sn | H14: Add constraint Tn > 0.00001 | N14: 1 | O14: =IF(Data!B30>E$6,Data!B30-E$6,0) -> 8 | P14: =IF(N14>0,Data!J30/'CB&P'!E$7,0) ->  | Q14: =IF(N14>0,G(E$14,((-J$20)*'CB&P'!E$13/1440)*'CB&P'!O14/Data!V$24^2,'CB&P'!Q$2),0) ->  | T14: 6 | U14: 3.892222417 | V14: =G('CB&P'!E$14,((-J$20)*'CB&P'!E$13/1440)*'CB&P'!U14/Data!V$24^2,0.00001) ->  | X14: 8
B15: Model Result: | D15: Tn (ft2/d) = | E15: =E13 -> 2.5 | I15: Tmin | J15: 3 | N15: 1 | O15: =IF(Data!B31>E$6,Data!B31-E$6,0) -> 9 | P15: =IF(N15>0,Data!J31/'CB&P'!E$7,0) ->  | Q15: =IF(N15>0,G(E$14,((-J$20)*'CB&P'!E$13/1440)*'CB&P'!O15/Data!V$24^2,'CB&P'!Q$2),0) ->  | T15: 7 | U15: 4.064842432 | V15: =G('CB&P'!E$14,((-J$20)*'CB&P'!E$13/1440)*'CB&P'!U15/Data!V$24^2,0.00001) ->  | X15: 9
I16: Tmax | J16: 230 | N16: 1 | O16: =IF(Data!B32>E$6,Data!B32-E$6,0) -> 10 | P16: =IF(N16>0,Data!J32/'CB&P'!E$7,0) ->  | Q16: =IF(N16>0,G(E$14,((-J$20)*'CB&P'!E$13/1440)*'CB&P'!O16/Data!V$24^2,'CB&P'!Q$2),0) ->  | T16: 8 | U16: 4.245118142 | V16: =G('CB&P'!E$14,((-J$20)*'CB&P'!E$13/1440)*'CB&P'!U16/Data!V$24^2,0.00001) ->  | X16: 10
N17: 1 | O17: =IF(Data!B33>E$6,Data!B33-E$6,0) -> 11 | P17: =IF(N17>0,Data!J33/'CB&P'!E$7,0) ->  | Q17: =IF(N17>0,G(E$14,((-J$20)*'CB&P'!E$13/1440)*'CB&P'!O17/Data!V$24^2,'CB&P'!Q$2),0) ->  | T17: 9 | U17: 4.433389078 | V17: =G('CB&P'!E$14,((-J$20)*'CB&P'!E$13/1440)*'CB&P'!U17/Data!V$24^2,0.00001) ->  | X17: 11
N18: 1 | O18: =IF(Data!B34>E$6,Data!B34-E$6,0) -> 13 | P18: =IF(N18>0,Data!J34/'CB&P'!E$7,0) ->  | Q18: =IF(N18>0,G(E$14,((-J$20)*'CB&P'!E$13/1440)*'CB&P'!O18/Data!V$24^2,'CB&P'!Q$2),0) ->  | T18: 10 | U18: 4.630009828 | V18: =G('CB&P'!E$14,((-J$20)*'CB&P'!E$13/1440)*'CB&P'!U18/Data!V$24^2,0.00001) ->  | X18: 13
J19: J-Ratio | N19: 1 | O19: =IF(Data!B35>E$6,Data!B35-E$6,0) -> 15 | P19: =IF(N19>0,Data!J35/'CB&P'!E$7,0) ->  | Q19: =IF(N19>0,G(E$14,((-J$20)*'CB&P'!E$13/1440)*'CB&P'!O19/Data!V$24^2,'CB&P'!Q$2),0) ->  | T19: 11 | U19: 4.835350705 | V19: =G('CB&P'!E$14,((-J$20)*'CB&P'!E$13/1440)*'CB&P'!U19/Data!V$24^2,0.00001) ->  | X19: 15
J20: =Figures!U27 ->  | N20: 1 | O20: =IF(Data!B36>E$6,Data!B36-E$6,0) -> 17 | P20: =IF(N20>0,Data!J36/'CB&P'!E$7,0) ->  | Q20: =IF(N20>0,G(E$14,((-J$20)*'CB&P'!E$13/1440)*'CB&P'!O20/Data!V$24^2,'CB&P'!Q$2),0) ->  | T20: 12 | U20: 5.049798447 | V20: =G('CB&P'!E$14,((-J$20)*'CB&P'!E$13/1440)*'CB&P'!U20/Data!V$24^2,0.00001) ->  | X20: 17
N21: 1 | O21: =IF(Data!B37>E$6,Data!B37-E$6,0) -> 19 | P21: =IF(N21>0,Data!J37/'CB&P'!E$7,0) ->  | Q21: =IF(N21>0,G(E$14,((-J$20)*'CB&P'!E$13/1440)*'CB&P'!O21/Data!V$24^2,'CB&P'!Q$2),0) ->  | T21: 13 | U21: 5.273756945 | V21: =G('CB&P'!E$14,((-J$20)*'CB&P'!E$13/1440)*'CB&P'!U21/Data!V$24^2,0.00001) ->  | X21: 19
N22: 1 | O22: =IF(Data!B38>E$6,Data!B38-E$6,0) -> 21 | P22: =IF(N22>0,Data!J38/'CB&P'!E$7,0) ->  | Q22: =IF(N22>0,G(E$14,((-J$20)*'CB&P'!E$13/1440)*'CB&P'!O22/Data!V$24^2,'CB&P'!Q$2),0) ->  | T22: 14 | U22: 5.507647998 | V22: =G('CB&P'!E$14,((-J$20)*'CB&P'!E$13/1440)*'CB&P'!U22/Data!V$24^2,0.00001) ->  | X22: 21
N23: 1 | O23: =IF(Data!B39>E$6,Data!B39-E$6,0) -> 31 | P23: =IF(N23>0,Data!J39/'CB&P'!E$7,0) ->  | Q23: =IF(N23>0,G(E$14,((-J$20)*'CB&P'!E$13/1440)*'CB&P'!O23/Data!V$24^2,'CB&P'!Q$2),0) ->  | T23: 15 | U23: 5.751912118 | V23: =G('CB&P'!E$14,((-J$20)*'CB&P'!E$13/1440)*'CB&P'!U23/Data!V$24^2,0.00001) ->  | X23: 31
N24: 1 | O24: =IF(Data!B40>E$6,Data!B40-E$6,0) -> 41 | P24: =IF(N24>0,Data!J40/'CB&P'!E$7,0) ->  | Q24: =IF(N24>0,G(E$14,((-J$20)*'CB&P'!E$13/1440)*'CB&P'!O24/Data!V$24^2,'CB&P'!Q$2),0) ->  | T24: 16 | U24: 6.007009347 | V24: =G('CB&P'!E$14,((-J$20)*'CB&P'!E$13/1440)*'CB&P'!U24/Data!V$24^2,0.00001) ->  | X24: 41
N25: 1 | O25: =IF(Data!B41>E$6,Data!B41-E$6,0) -> 51 | P25: =IF(N25>0,Data!J41/'CB&P'!E$7,0) ->  | Q25: =IF(N25>0,G(E$14,((-J$20)*'CB&P'!E$13/1440)*'CB&P'!O25/Data!V$24^2,'CB&P'!Q$2),0) ->  | T25: 17 | U25: 6.273420136 | V25: =G('CB&P'!E$14,((-J$20)*'CB&P'!E$13/1440)*'CB&P'!U25/Data!V$24^2,0.00001) ->  | X25: 51
N26: 1 | O26: =IF(Data!B42>E$6,Data!B42-E$6,0) -> 61 | P26: =IF(N26>0,Data!J42/'CB&P'!E$7,0) ->  | Q26: =IF(N26>0,G(E$14,((-J$20)*'CB&P'!E$13/1440)*'CB&P'!O26/Data!V$24^2,'CB&P'!Q$2),0) ->  | T26: 18 | U26: 6.551646239 | V26: =G('CB&P'!E$14,((-J$20)*'CB&P'!E$13/1440)*'CB&P'!U26/Data!V$24^2,0.00001) ->  | X26: 61
N27: 1 | O27: =IF(Data!B43>E$6,Data!B43-E$6,0) -> 71 | P27: =IF(N27>0,Data!J43/'CB&P'!E$7,0) ->  | Q27: =IF(N27>0,G(E$14,((-J$20)*'CB&P'!E$13/1440)*'CB&P'!O27/Data!V$24^2,'CB&P'!Q$2),0) ->  | R27: =N27*(P27-Q27)^2 ->  | T27: 19 | U27: 6.842211667 | V27: =G('CB&P'!E$14,((-J$20)*'CB&P'!E$13/1440)*'CB&P'!U27/Data!V$24^2,0.00001) ->  | X27: 71
N28: 1 | O28: =IF(Data!B44>E$6,Data!B44-E$6,0) -> 81 | P28: =IF(N28>0,Data!J44/'CB&P'!E$7,0) ->  | Q28: =IF(N28>0,G(E$14,((-J$20)*'CB&P'!E$13/1440)*'CB&P'!O28/Data!V$24^2,'CB&P'!Q$2),0) ->  | R28: =N28*(P28-Q28)^2 ->  | T28: 20 | U28: 7.145663668 | V28: =G('CB&P'!E$14,((-J$20)*'CB&P'!E$13/1440)*'CB&P'!U28/Data!V$24^2,0.00001) ->  | X28: 81
N29: 1 | O29: =IF(Data!B45>E$6,Data!B45-E$6,0) -> 91 | P29: =IF(N29>0,Data!J45/'CB&P'!E$7,0) ->  | Q29: =IF(N29>0,G(E$14,((-J$20)*'CB&P'!E$13/1440)*'CB&P'!O29/Data!V$24^2,'CB&P'!Q$2),0) ->  | T29: 21 | U29: 7.462573761 | V29: =G('CB&P'!E$14,((-J$20)*'CB&P'!E$13/1440)*'CB&P'!U29/Data!V$24^2,0.00001) ->  | X29: 91
N30: 1 | O30: =IF(Data!B46>E$6,Data!B46-E$6,0) -> 121 | P30: =IF(N30>0,Data!J46/'CB&P'!E$7,0) ->  | Q30: =IF(N30>0,G(E$14,((-J$20)*'CB&P'!E$13/1440)*'CB&P'!O30/Data!V$24^2,'CB&P'!Q$2),0) ->  | T30: 22 | U30: 7.793538813 | V30: =G('CB&P'!E$14,((-J$20)*'CB&P'!E$13/1440)*'CB&P'!U30/Data!V$24^2,0.00001) ->  | X30: 121
N31: 1 | O31: =IF(Data!B47>E$6,Data!B47-E$6,0) -> 151 | P31: =IF(N31>0,Data!J47/'CB&P'!E$7,0) ->  | Q31: =IF(N31>0,G(E$14,((-J$20)*'CB&P'!E$13/1440)*'CB&P'!O31/Data!V$24^2,'CB&P'!Q$2),0) ->  | T31: 23 | U31: 8.139182161 | V31: =G('CB&P'!E$14,((-J$20)*'CB&P'!E$13/1440)*'CB&P'!U31/Data!V$24^2,0.00001) ->  | X31: 151
N32: 1 | O32: =IF(Data!B48>E$6,Data!B48-E$6,0) -> 181 | P32: =IF(N32>0,Data!J48/'CB&P'!E$7,0) ->  | Q32: =IF(N32>0,G(E$14,((-J$20)*'CB&P'!E$13/1440)*'CB&P'!O32/Data!V$24^2,'CB&P'!Q$2),0) ->  | T32: 24 | U32: 8.500154787 | V32: =G('CB&P'!E$14,((-J$20)*'CB&P'!E$13/1440)*'CB&P'!U32/Data!V$24^2,0.00001) ->  | X32: 181
N33: 1 | O33: =IF(Data!B49>E$6,Data!B49-E$6,0) -> 211 | P33: =IF(N33>0,Data!J49/'CB&P'!E$7,0) ->  | Q33: =IF(N33>0,G(E$14,((-J$20)*'CB&P'!E$13/1440)*'CB&P'!O33/Data!V$24^2,'CB&P'!Q$2),0) ->  | T33: 25 | U33: 8.877136544 | V33: =G('CB&P'!E$14,((-J$20)*'CB&P'!E$13/1440)*'CB&P'!U33/Data!V$24^2,0.00001) ->  | X33: 211
N34: 1 | O34: =IF(Data!B50>E$6,Data!B50-E$6,0) -> 241 | P34: =IF(N34>0,Data!J50/'CB&P'!E$7,0) ->  | Q34: =IF(N34>0,G(E$14,((-J$20)*'CB&P'!E$13/1440)*'CB&P'!O34/Data!V$24^2,'CB&P'!Q$2),0) ->  | T34: 26 | U34: 9.270837437 | V34: =G('CB&P'!E$14,((-J$20)*'CB&P'!E$13/1440)*'CB&P'!U34/Data!V$24^2,0.00001) ->  | X34: 241
N35: 1 | O35: =IF(Data!B51>E$6,Data!B51-E$6,0) -> 271 | P35: =IF(N35>0,Data!J51/'CB&P'!E$7,0) ->  | Q35: =IF(N35>0,G(E$14,((-J$20)*'CB&P'!E$13/1440)*'CB&P'!O35/Data!V$24^2,'CB&P'!Q$2),0) ->  | T35: 27 | U35: 9.68199896 | V35: =G('CB&P'!E$14,((-J$20)*'CB&P'!E$13/1440)*'CB&P'!U35/Data!V$24^2,0.00001) ->  | X35: 271
N36: 1 | O36: =IF(Data!B52>E$6,Data!B52-E$6,0) -> 301 | P36: =IF(N36>0,Data!J52/'CB&P'!E$7,0) ->  | Q36: =IF(N36>0,G(E$14,((-J$20)*'CB&P'!E$13/1440)*'CB&P'!O36/Data!V$24^2,'CB&P'!Q$2),0) ->  | T36: 28 | U36: 10.11139549 | V36: =G('CB&P'!E$14,((-J$20)*'CB&P'!E$13/1440)*'CB&P'!U36/Data!V$24^2,0.00001) ->  | X36: 301
N37: 0 | O37: =IF(Data!B53>E$6,Data!B53-E$6,0) -> 0 | P37: =IF(N37>0,Data!J53/'CB&P'!E$7,0) -> 0 | Q37: =IF(N37>0,G(E$14,((-J$20)*'CB&P'!E$13/1440)*'CB&P'!O37/Data!V$24^2,'CB&P'!Q$2),0) -> 0 | R37: 0 | T37: 29 | U37: 10.55983575 | V37: =G('CB&P'!E$14,((-J$20)*'CB&P'!E$13/1440)*'CB&P'!U37/Data!V$24^2,0.00001) -> 
N38: 0 | O38: =IF(Data!B54>E$6,Data!B54-E$6,0) -> 0 | P38: =IF(N38>0,Data!J54/'CB&P'!E$7,0) -> 0 | Q38: =IF(N38>0,G(E$14,((-J$20)*'CB&P'!E$13/1440)*'CB&P'!O38/Data!V$24^2,'CB&P'!Q$2),0) -> 0 | R38: 0 | T38: 30 | U38: 11.02816434 | V38: =G('CB&P'!E$14,((-J$20)*'CB&P'!E$13/1440)*'CB&P'!U38/Data!V$24^2,0.00001) -> 
N39: 0 | O39: =IF(Data!B55>E$6,Data!B55-E$6,0) -> 0 | P39: =IF(N39>0,Data!J55/'CB&P'!E$7,0) -> 0 | Q39: =IF(N39>0,G(E$14,((-J$20)*'CB&P'!E$13/1440)*'CB&P'!O39/Data!V$24^2,'CB&P'!Q$2),0) -> 0 | R39: 0 | T39: 31 | U39: 11.51726328 | V39: =G('CB&P'!E$14,((-J$20)*'CB&P'!E$13/1440)*'CB&P'!U39/Data!V$24^2,0.00001) -> 
N40: 0 | O40: =IF(Data!B56>E$6,Data!B56-E$6,0) -> 0 | P40: =IF(N40>0,Data!J56/'CB&P'!E$7,0) -> 0 | Q40: =IF(N40>0,G(E$14,((-J$20)*'CB&P'!E$13/1440)*'CB&P'!O40/Data!V$24^2,'CB&P'!Q$2),0) -> 0 | R40: 0 | T40: 32 | U40: =EXP(LN(J$15)+(LN(J$16)-LN(J$15))*T40/100) -> 12.02805377 | V40: =G('CB&P'!E$14,((-J$20)*'CB&P'!E$13/1440)*'CB&P'!U40/Data!V$24^2,0.00001) -> 
N41: 0 | O41: =IF(Data!B57>E$6,Data!B57-E$6,0) -> 0 | P41: =IF(N41>0,Data!J57/'CB&P'!E$7,0) -> 0 | Q41: =IF(N41>0,G(E$14,((-J$20)*'CB&P'!E$13/1440)*'CB&P'!O41/Data!V$24^2,'CB&P'!Q$2),0) -> 0 | R41: 0 | T41: 33 | U41: 12.5614978 | V41: =G('CB&P'!E$14,((-J$20)*'CB&P'!E$13/1440)*'CB&P'!U41/Data!V$24^2,0.00001) -> 
N42: 0 | O42: =IF(Data!B58>E$6,Data!B58-E$6,0) -> 0 | P42: =IF(N42>0,Data!J58/'CB&P'!E$7,0) -> 0 | Q42: =IF(N42>0,G(E$14,((-J$20)*'CB&P'!E$13/1440)*'CB&P'!O42/Data!V$24^2,'CB&P'!Q$2),0) -> 0 | R42: 0 | T42: 34 | U42: 13.11860007 | V42: =G('CB&P'!E$14,((-J$20)*'CB&P'!E$13/1440)*'CB&P'!U42/Data!V$24^2,0.00001) -> 
N43: 0 | O43: =IF(Data!B59>E$6,Data!B59-E$6,0) -> 0 | P43: =IF(N43>0,Data!J59/'CB&P'!E$7,0) -> 0 | Q43: =IF(N43>0,G(E$14,((-J$20)*'CB&P'!E$13/1440)*'CB&P'!O43/Data!V$24^2,'CB&P'!Q$2),0) -> 0 | R43: 0 | T43: 35 | U43: 13.70040981 | V43: =G('CB&P'!E$14,((-J$20)*'CB&P'!E$13/1440)*'CB&P'!U43/Data!V$24^2,0.00001) -> 
N44: 0 | O44: =IF(Data!B60>E$6,Data!B60-E$6,0) -> 0 | P44: =IF(N44>0,Data!J60/'CB&P'!E$7,0) -> 0 | Q44: =IF(N44>0,G(E$14,((-J$20)*'CB&P'!E$13/1440)*'CB&P'!O44/Data!V$24^2,'CB&P'!Q$2),0) -> 0 | R44: 0 | T44: 36 | U44: 14.30802282 | V44: =G('CB&P'!E$14,((-J$20)*'CB&P'!E$13/1440)*'CB&P'!U44/Data!V$24^2,0.00001) -> 
N45: 0 | O45: =IF(Data!B61>E$6,Data!B61-E$6,0) -> 0 | P45: =IF(N45>0,Data!J61/'CB&P'!E$7,0) -> 0 | Q45: =IF(N45>0,G(E$14,((-J$20)*'CB&P'!E$13/1440)*'CB&P'!O45/Data!V$24^2,'CB&P'!Q$2),0) -> 0 | R45: 0 | T45: 37 | U45: 14.94258345 | V45: =G('CB&P'!E$14,((-J$20)*'CB&P'!E$13/1440)*'CB&P'!U45/Data!V$24^2,0.00001) -> 
N46: 0 | O46: =IF(Data!B62>E$6,Data!B62-E$6,0) -> 0 | P46: =IF(N46>0,Data!J62/'CB&P'!E$7,0) -> 0 | Q46: =IF(N46>0,G(E$14,((-J$20)*'CB&P'!E$13/1440)*'CB&P'!O46/Data!V$24^2,'CB&P'!Q$2),0) -> 0 | R46: 0 | T46: 38 | U46: 15.60528683 | V46: =G('CB&P'!E$14,((-J$20)*'CB&P'!E$13/1440)*'CB&P'!U46/Data!V$24^2,0.00001) -> 
N47: 0 | O47: =IF(Data!B63>E$6,Data!B63-E$6,0) -> 0 | P47: =IF(N47>0,Data!J63/'CB&P'!E$7,0) -> 0 | Q47: =IF(N47>0,G(E$14,((-J$20)*'CB&P'!E$13/1440)*'CB&P'!O47/Data!V$24^2,'CB&P'!Q$2),0) -> 0 | R47: 0 | T47: 39 | U47: 16.29738111 | V47: =G('CB&P'!E$14,((-J$20)*'CB&P'!E$13/1440)*'CB&P'!U47/Data!V$24^2,0.00001) -> 
N48: 0 | O48: =IF(Data!B64>E$6,Data!B64-E$6,0) -> 0 | P48: =IF(N48>0,Data!J64/'CB&P'!E$7,0) -> 0 | Q48: =IF(N48>0,G(E$14,((-J$20)*'CB&P'!E$13/1440)*'CB&P'!O48/Data!V$24^2,'CB&P'!Q$2),0) -> 0 | R48: 0 | T48: 40 | U48: 17.02016975 | V48: =G('CB&P'!E$14,((-J$20)*'CB&P'!E$13/1440)*'CB&P'!U48/Data!V$24^2,0.00001) -> 
T49: 41 | U49: 17.77501407 | V49: =G('CB&P'!E$14,((-J$20)*'CB&P'!E$13/1440)*'CB&P'!U49/Data!V$24^2,0.00001) -> 
T50: 42 | U50: 18.56333571 | V50: =G('CB&P'!E$14,((-J$20)*'CB&P'!E$13/1440)*'CB&P'!U50/Data!V$24^2,0.00001) -> 
T51: 43 | U51: 19.38661942 | V51: =G('CB&P'!E$14,((-J$20)*'CB&P'!E$13/1440)*'CB&P'!U51/Data!V$24^2,0.00001) -> 
T52: 44 | U52: 20.24641574 | V52: =G('CB&P'!E$14,((-J$20)*'CB&P'!E$13/1440)*'CB&P'!U52/Data!V$24^2,0.00001) -> 
T53: 45 | U53: 21.14434403 | V53: =G('CB&P'!E$14,((-J$20)*'CB&P'!E$13/1440)*'CB&P'!U53/Data!V$24^2,0.00001) -> 
T54: 46 | U54: 22.08209542 | V54: =G('CB&P'!E$14,((-J$20)*'CB&P'!E$13/1440)*'CB&P'!U54/Data!V$24^2,0.00001) -> 
T55: 47 | U55: 23.06143607 | V55: =G('CB&P'!E$14,((-J$20)*'CB&P'!E$13/1440)*'CB&P'!U55/Data!V$24^2,0.00001) -> 
T56: 48 | U56: 24.08421047 | V56: =G('CB&P'!E$14,((-J$20)*'CB&P'!E$13/1440)*'CB&P'!U56/Data!V$24^2,0.00001) -> 
T57: 49 | U57: 25.1523449 | V57: =G('CB&P'!E$14,((-J$20)*'CB&P'!E$13/1440)*'CB&P'!U57/Data!V$24^2,0.00001) -> 
T58: 50 | U58: 26.26785107 | V58: =G('CB&P'!E$14,((-J$20)*'CB&P'!E$13/1440)*'CB&P'!U58/Data!V$24^2,0.00001) -> 
T59: 51 | U59: 27.43282994 | V59: =G('CB&P'!E$14,((-J$20)*'CB&P'!E$13/1440)*'CB&P'!U59/Data!V$24^2,0.00001) -> 
T60: 52 | U60: 28.6494756 | V60: =G('CB&P'!E$14,((-J$20)*'CB&P'!E$13/1440)*'CB&P'!U60/Data!V$24^2,0.00001) -> 
T61: 53 | U61: 29.92007948 | V61: =G('CB&P'!E$14,((-J$20)*'CB&P'!E$13/1440)*'CB&P'!U61/Data!V$24^2,0.00001) -> 
T62: 54 | U62: 31.24703462 | V62: =G('CB&P'!E$14,((-J$20)*'CB&P'!E$13/1440)*'CB&P'!U62/Data!V$24^2,0.00001) -> 
T63: 55 | U63: 32.63284021 | V63: =G('CB&P'!E$14,((-J$20)*'CB&P'!E$13/1440)*'CB&P'!U63/Data!V$24^2,0.00001) -> 
T64: 56 | U64: 34.08010626 | V64: =G('CB&P'!E$14,((-J$20)*'CB&P'!E$13/1440)*'CB&P'!U64/Data!V$24^2,0.00001) -> 
T65: 57 | U65: 35.59155854 | V65: =G('CB&P'!E$14,((-J$20)*'CB&P'!E$13/1440)*'CB&P'!U65/Data!V$24^2,0.00001) -> 
T66: 58 | U66: 37.17004372 | V66: =G('CB&P'!E$14,((-J$20)*'CB&P'!E$13/1440)*'CB&P'!U66/Data!V$24^2,0.00001) -> 
T67: 59 | U67: 38.81853468 | V67: =G('CB&P'!E$14,((-J$20)*'CB&P'!E$13/1440)*'CB&P'!U67/Data!V$24^2,0.00001) -> 
T68: 60 | U68: 40.54013621 | V68: =G('CB&P'!E$14,((-J$20)*'CB&P'!E$13/1440)*'CB&P'!U68/Data!V$24^2,0.00001) -> 
T69: 61 | U69: 42.33809073 | V69: =G('CB&P'!E$14,((-J$20)*'CB&P'!E$13/1440)*'CB&P'!U69/Data!V$24^2,0.00001) -> 
T70: 62 | U70: 44.21578452 | V70: =G('CB&P'!E$14,((-J$20)*'CB&P'!E$13/1440)*'CB&P'!U70/Data!V$24^2,0.00001) -> 
T71: 63 | U71: 46.17675401 | V71: =G('CB&P'!E$14,((-J$20)*'CB&P'!E$13/1440)*'CB&P'!U71/Data!V$24^2,0.00001) -> 
T72: 64 | U72: =EXP(LN(J$15)+(LN(J$16)-LN(J$15))*T72/100) -> 48.22469246 | V72: =G('CB&P'!E$14,((-J$20)*'CB&P'!E$13/1440)*'CB&P'!U72/Data!V$24^2,0.00001) -> 
T73: 65 | U73: 50.36345696 | V73: =G('CB&P'!E$14,((-J$20)*'CB&P'!E$13/1440)*'CB&P'!U73/Data!V$24^2,0.00001) -> 
T74: 66 | U74: 52.59707564 | V74: =G('CB&P'!E$14,((-J$20)*'CB&P'!E$13/1440)*'CB&P'!U74/Data!V$24^2,0.00001) -> 
T75: 67 | U75: 54.92975528 | V75: =G('CB&P'!E$14,((-J$20)*'CB&P'!E$13/1440)*'CB&P'!U75/Data!V$24^2,0.00001) -> 
T76: 68 | U76: 57.36588923 | V76: =G('CB&P'!E$14,((-J$20)*'CB&P'!E$13/1440)*'CB&P'!U76/Data!V$24^2,0.00001) -> 
T77: 69 | U77: 59.91006569 | V77: =G('CB&P'!E$14,((-J$20)*'CB&P'!E$13/1440)*'CB&P'!U77/Data!V$24^2,0.00001) -> 
T78: 70 | U78: 62.56707635 | V78: =G('CB&P'!E$14,((-J$20)*'CB&P'!E$13/1440)*'CB&P'!U78/Data!V$24^2,0.00001) -> 
T79: 71 | U79: 65.34192539 | V79: =G('CB&P'!E$14,((-J$20)*'CB&P'!E$13/1440)*'CB&P'!U79/Data!V$24^2,0.00001) -> 
T80: 72 | U80: 68.23983896 | V80: =G('CB&P'!E$14,((-J$20)*'CB&P'!E$13/1440)*'CB&P'!U80/Data!V$24^2,0.00001) -> 
T81: 73 | U81: 71.26627495 | V81: =G('CB&P'!E$14,((-J$20)*'CB&P'!E$13/1440)*'CB&P'!U81/Data!V$24^2,0.00001) -> 
T82: 74 | U82: 74.42693335 | V82: =G('CB&P'!E$14,((-J$20)*'CB&P'!E$13/1440)*'CB&P'!U82/Data!V$24^2,0.00001) -> 
T83: 75 | U83: 77.7277669 | V83: =G('CB&P'!E$14,((-J$20)*'CB&P'!E$13/1440)*'CB&P'!U83/Data!V$24^2,0.00001) -> 
T84: 76 | U84: 81.17499238 | V84: =G('CB&P'!E$14,((-J$20)*'CB&P'!E$13/1440)*'CB&P'!U84/Data!V$24^2,0.00001) -> 
T85: 77 | U85: 84.77510226 | V85: =G('CB&P'!E$14,((-J$20)*'CB&P'!E$13/1440)*'CB&P'!U85/Data!V$24^2,0.00001) -> 
T86: 78 | U86: 88.53487697 | V86: =G('CB&P'!E$14,((-J$20)*'CB&P'!E$13/1440)*'CB&P'!U86/Data!V$24^2,0.00001) -> 
T87: 79 | U87: 92.46139765 | V87: =G('CB&P'!E$14,((-J$20)*'CB&P'!E$13/1440)*'CB&P'!U87/Data!V$24^2,0.00001) -> 
T88: 80 | U88: 96.56205946 | V88: =G('CB&P'!E$14,((-J$20)*'CB&P'!E$13/1440)*'CB&P'!U88/Data!V$24^2,0.00001) -> 
T89: 81 | U89: 100.8445856 | V89: =G('CB&P'!E$14,((-J$20)*'CB&P'!E$13/1440)*'CB&P'!U89/Data!V$24^2,0.00001) -> 
T90: 82 | U90: 105.3170417 | V90: =G('CB&P'!E$14,((-J$20)*'CB&P'!E$13/1440)*'CB&P'!U90/Data!V$24^2,0.00001) -> 
T91: 83 | U91: 109.9878511 | V91: =G('CB&P'!E$14,((-J$20)*'CB&P'!E$13/1440)*'CB&P'!U91/Data!V$24^2,0.00001) -> 
T92: 84 | U92: 114.8658109 | V92: =G('CB&P'!E$14,((-J$20)*'CB&P'!E$13/1440)*'CB&P'!U92/Data!V$24^2,0.00001) -> 
T93: 85 | U93: 119.9601082 | V93: =G('CB&P'!E$14,((-J$20)*'CB&P'!E$13/1440)*'CB&P'!U93/Data!V$24^2,0.00001) -> 
T94: 86 | U94: 125.2803375 | V94: =G('CB&P'!E$14,((-J$20)*'CB&P'!E$13/1440)*'CB&P'!U94/Data!V$24^2,0.00001) -> 
T95: 87 | U95: 130.8365189 | V95: =G('CB&P'!E$14,((-J$20)*'CB&P'!E$13/1440)*'CB&P'!U95/Data!V$24^2,0.00001) -> 
T96: 88 | U96: 136.6391168 | V96: =G('CB&P'!E$14,((-J$20)*'CB&P'!E$13/1440)*'CB&P'!U96/Data!V$24^2,0.00001) -> 
T97: 89 | U97: 142.6990599 | V97: =G('CB&P'!E$14,((-J$20)*'CB&P'!E$13/1440)*'CB&P'!U97/Data!V$24^2,0.00001) -> 
T98: 90 | U98: 149.0277614 | V98: =G('CB&P'!E$14,((-J$20)*'CB&P'!E$13/1440)*'CB&P'!U98/Data!V$24^2,0.00001) -> 
T99: 91 | U99: 155.6371408 | V99: =G('CB&P'!E$14,((-J$20)*'CB&P'!E$13/1440)*'CB&P'!U99/Data!V$24^2,0.00001) -> 
T100: 92 | U100: 162.539646 | V100: =G('CB&P'!E$14,((-J$20)*'CB&P'!E$13/1440)*'CB&P'!U100/Data!V$24^2,0.00001) -> 
T101: 93 | U101: 169.7482772 | V101: =G('CB&P'!E$14,((-J$20)*'CB&P'!E$13/1440)*'CB&P'!U101/Data!V$24^2,0.00001) -> 
T102: 94 | U102: 177.2766112 | V102: =G('CB&P'!E$14,((-J$20)*'CB&P'!E$13/1440)*'CB&P'!U102/Data!V$24^2,0.00001) -> 
T103: 95 | U103: 185.1388266 | V103: =G('CB&P'!E$14,((-J$20)*'CB&P'!E$13/1440)*'CB&P'!U103/Data!V$24^2,0.00001) -> 
T104: 96 | U104: =EXP(LN(J$15)+(LN(J$16)-LN(J$15))*T104/100) -> 193.3497313 | V104: =G('CB&P'!E$14,((-J$20)*'CB&P'!E$13/1440)*'CB&P'!U104/Data!V$24^2,0.00001) -> 
T105: 97 | U105: 201.9247894 | V105: =G('CB&P'!E$14,((-J$20)*'CB&P'!E$13/1440)*'CB&P'!U105/Data!V$24^2,0.00001) -> 
T106: 98 | U106: 210.8801512 | V106: =G('CB&P'!E$14,((-J$20)*'CB&P'!E$13/1440)*'CB&P'!U106/Data!V$24^2,0.00001) -> 
T107: 99 | U107: 220.2326833 | V107: =G('CB&P'!E$14,((-J$20)*'CB&P'!E$13/1440)*'CB&P'!U107/Data!V$24^2,0.00001) -> 
T108: 100 | U108: 230 | V108: =G('CB&P'!E$14,((-J$20)*'CB&P'!E$13/1440)*'CB&P'!U108/Data!V$24^2,0.00001) -> 

Sheet B&R Type Curve
A1: Bouwer and Rice Short Term LNAPL Mobility Test Type Curves
A2: =CONCATENATE("B&R Type Curves: Casing Rad. (ft) = ",Data!B6," ; Borehole Rad. (ft) = ",Data!B7) -> B&R Type Curves: Casing Rad. (ft) = 0.083 ; Borehole Rad. (ft) = 0.167
D5: Enter these values
A6: Type Curve ID | B6: Type Curve Name | C6: Notes | D6: Max Time (min) | E6: Transmissivity (ft2/day)
A7: 1 | B7: =CONCATENATE("T=",E7," ft2/day") -> T=10 ft2/day | D7: 150 | E7: 10 | G7: J-Ratio | K7: Type Curve 1 | N7: Type Curve 2 | Q7: Type Curve 3 | T7: Type Curve 4 | W7: Type Curve 5 | Z7: Type Curve 6 | AC7: Type Curve 7
A8: 2 | B8: T=5 ft2/day | D8: 200 | E8: 5 | G8: =Figures!U27 ->  | H8: <-- If uncertain use | L8: T (ft2/day) | O8: T (ft2/day) | R8: T (ft2/day) | U8: T (ft2/day) | X8: T (ft2/day) | AA8: T (ft2/day) | AD8: T (ft2/day)
A9: 3 | B9: T=2 ft2/day | D9: 200 | E9: 2 | H9: =-(1-Data!B9) -> -0.22 | L9: =E7 -> 10 | O9: =E8 -> 5 | R9: =E9 -> 2 | U9: =E10 -> 1 | X9: =E11 -> 0.5 | AA9: =E12 -> 0.2 | AD9: =E13 -> 0.1
A10: 4 | B10: T=1 ft2/day | D10: 200 | E10: 1
A11: 5 | B11: T=0.5 ft2/day | D11: 200 | E11: 0.5 | K11: t (min) | L11: s(t)/s0 | N11: t (min) | O11: s(t)/s0 | Q11: t (min) | R11: s(t)/s0 | T11: t (min) | U11: s(t)/s0 | W11: t (min) | X11: s(t)/s0 | Z11: t (min) | AA11: s(t)/s0 | AC11: t (min) | AD11: s(t)/s0
A12: 6 | B12: T=0.2 ft2/day | D12: 200 | E12: 0.2 | K12: 0 | L12: =EXP(-(2*L$9*(K12/1440)*(-G$8)/(Data!B$13^2*LN('B&R'!$J$12)))) ->  | N12: 0 | O12: =EXP(-(2*O$9*(N12/1440)*(-G$8))/(Data!B$13^2*LN('B&R'!$J$12))) ->  | Q12: 0 | R12: =EXP(-(2*R$9*(Q12/1440)*(-G$8))/(Data!B$13^2*LN('B&R'!$J$12))) ->  | T12: 0 | U12: =EXP(-(2*U$9*(T12/1440)*(-G$8))/(Data!B$13^2*LN('B&R'!J$12))) ->  | W12: 0 | X12: =EXP(-(2*X$9*(W12/1440)*(-G$8))/(Data!B$13^2*LN('B&R'!$J$12))) ->  | Z12: 0 | AA12: =EXP(-(2*AA$9*(Z12/1440)*(-G$8))/(Data!B$13^2*LN('B&R'!$J$12))) ->  | AC12: 0 | AD12: =EXP(-(2*AD$9*(AC12/1440)*(-G$8))/(Data!B$13^2*LN('B&R'!$J$12))) -> 
A13: 7 | B13: T=0.1 ft2/day | D13: 200 | E13: 0.1 | K13: =(K$42-K$12)/30+K12 -> 5 | L13: =EXP(-(2*L$9*(K13/1440)*(-G$8)/(Data!B$13^2*LN('B&R'!$J$12)))) ->  | N13: =(N$42-N$12)/30+N12 -> 6.666666667 | O13: =EXP(-(2*O$9*(N13/1440)*(-G$8))/(Data!B$13^2*LN('B&R'!$J$12))) ->  | Q13: =(Q$42-Q$12)/30+Q12 -> 6.666666667 | R13: =EXP(-(2*R$9*(Q13/1440)*(-G$8))/(Data!B$13^2*LN('B&R'!$J$12))) ->  | T13: =(T$42-T$12)/30+T12 -> 6.666666667 | U13: =EXP(-(2*U$9*(T13/1440)*(-G$8))/(Data!B$13^2*LN('B&R'!J$12))) ->  | W13: =(W$42-W$12)/30+W12 -> 6.666666667 | X13: =EXP(-(2*X$9*(W13/1440)*(-G$8))/(Data!B$13^2*LN('B&R'!$J$12))) ->  | Z13: =(Z$42-Z$12)/30+Z12 -> 6.666666667 | AA13: =EXP(-(2*AA$9*(Z13/1440)*(-G$8))/(Data!B$13^2*LN('B&R'!$J$12))) ->  | AC13: =(AC$42-AC$12)/30+AC12 -> 6.666666667 | AD13: =EXP(-(2*AD$9*(AC13/1440)*(-G$8))/(Data!B$13^2*LN('B&R'!$J$12))) -> 
K14: 10 | L14: =EXP(-(2*L$9*(K14/1440)*(-G$8)/(Data!B$13^2*LN('B&R'!$J$12)))) ->  | N14: 13.33333333 | O14: =EXP(-(2*O$9*(N14/1440)*(-G$8))/(Data!B$13^2*LN('B&R'!$J$12))) ->  | Q14: 13.33333333 | R14: =EXP(-(2*R$9*(Q14/1440)*(-G$8))/(Data!B$13^2*LN('B&R'!$J$12))) ->  | T14: 13.33333333 | U14: =EXP(-(2*U$9*(T14/1440)*(-G$8))/(Data!B$13^2*LN('B&R'!J$12))) ->  | W14: 13.33333333 | X14: =EXP(-(2*X$9*(W14/1440)*(-G$8))/(Data!B$13^2*LN('B&R'!$J$12))) ->  | Z14: 13.33333333 | AA14: =EXP(-(2*AA$9*(Z14/1440)*(-G$8))/(Data!B$13^2*LN('B&R'!$J$12))) ->  | AC14: 13.33333333 | AD14: =EXP(-(2*AD$9*(AC14/1440)*(-G$8))/(Data!B$13^2*LN('B&R'!$J$12))) -> 
K15: 15 | L15: =EXP(-(2*L$9*(K15/1440)*(-G$8)/(Data!B$13^2*LN('B&R'!$J$12)))) ->  | N15: 20 | O15: =EXP(-(2*O$9*(N15/1440)*(-G$8))/(Data!B$13^2*LN('B&R'!$J$12))) ->  | Q15: 20 | R15: =EXP(-(2*R$9*(Q15/1440)*(-G$8))/(Data!B$13^2*LN('B&R'!$J$12))) ->  | T15: 20 | U15: =EXP(-(2*U$9*(T15/1440)*(-G$8))/(Data!B$13^2*LN('B&R'!J$12))) ->  | W15: 20 | X15: =EXP(-(2*X$9*(W15/1440)*(-G$8))/(Data!B$13^2*LN('B&R'!$J$12))) ->  | Z15: 20 | AA15: =EXP(-(2*AA$9*(Z15/1440)*(-G$8))/(Data!B$13^2*LN('B&R'!$J$12))) ->  | AC15: 20 | AD15: =EXP(-(2*AD$9*(AC15/1440)*(-G$8))/(Data!B$13^2*LN('B&R'!$J$12))) -> 
K16: 20 | L16: =EXP(-(2*L$9*(K16/1440)*(-G$8)/(Data!B$13^2*LN('B&R'!$J$12)))) ->  | N16: 26.66666667 | O16: =EXP(-(2*O$9*(N16/1440)*(-G$8))/(Data!B$13^2*LN('B&R'!$J$12))) ->  | Q16: 26.66666667 | R16: =EXP(-(2*R$9*(Q16/1440)*(-G$8))/(Data!B$13^2*LN('B&R'!$J$12))) ->  | T16: 26.66666667 | U16: =EXP(-(2*U$9*(T16/1440)*(-G$8))/(Data!B$13^2*LN('B&R'!J$12))) ->  | W16: 26.66666667 | X16: =EXP(-(2*X$9*(W16/1440)*(-G$8))/(Data!B$13^2*LN('B&R'!$J$12))) ->  | Z16: 26.66666667 | AA16: =EXP(-(2*AA$9*(Z16/1440)*(-G$8))/(Data!B$13^2*LN('B&R'!$J$12))) ->  | AC16: 26.66666667 | AD16: =EXP(-(2*AD$9*(AC16/1440)*(-G$8))/(Data!B$13^2*LN('B&R'!$J$12))) -> 
K17: 25 | L17: =EXP(-(2*L$9*(K17/1440)*(-G$8)/(Data!B$13^2*LN('B&R'!$J$12)))) ->  | N17: 33.33333333 | O17: =EXP(-(2*O$9*(N17/1440)*(-G$8))/(Data!B$13^2*LN('B&R'!$J$12))) ->  | Q17: 33.33333333 | R17: =EXP(-(2*R$9*(Q17/1440)*(-G$8))/(Data!B$13^2*LN('B&R'!$J$12))) ->  | T17: 33.33333333 | U17: =EXP(-(2*U$9*(T17/1440)*(-G$8))/(Data!B$13^2*LN('B&R'!J$12))) ->  | W17: 33.33333333 | X17: =EXP(-(2*X$9*(W17/1440)*(-G$8))/(Data!B$13^2*LN('B&R'!$J$12))) ->  | Z17: 33.33333333 | AA17: =EXP(-(2*AA$9*(Z17/1440)*(-G$8))/(Data!B$13^2*LN('B&R'!$J$12))) ->  | AC17: 33.33333333 | AD17: =EXP(-(2*AD$9*(AC17/1440)*(-G$8))/(Data!B$13^2*LN('B&R'!$J$12))) -> 
K18: 30 | L18: =EXP(-(2*L$9*(K18/1440)*(-G$8)/(Data!B$13^2*LN('B&R'!$J$12)))) ->  | N18: 40 | O18: =EXP(-(2*O$9*(N18/1440)*(-G$8))/(Data!B$13^2*LN('B&R'!$J$12))) ->  | Q18: 40 | R18: =EXP(-(2*R$9*(Q18/1440)*(-G$8))/(Data!B$13^2*LN('B&R'!$J$12))) ->  | T18: 40 | U18: =EXP(-(2*U$9*(T18/1440)*(-G$8))/(Data!B$13^2*LN('B&R'!J$12))) ->  | W18: 40 | X18: =EXP(-(2*X$9*(W18/1440)*(-G$8))/(Data!B$13^2*LN('B&R'!$J$12))) ->  | Z18: 40 | AA18: =EXP(-(2*AA$9*(Z18/1440)*(-G$8))/(Data!B$13^2*LN('B&R'!$J$12))) ->  | AC18: 40 | AD18: =EXP(-(2*AD$9*(AC18/1440)*(-G$8))/(Data!B$13^2*LN('B&R'!$J$12))) -> 
K19: 35 | L19: =EXP(-(2*L$9*(K19/1440)*(-G$8)/(Data!B$13^2*LN('B&R'!$J$12)))) ->  | N19: 46.66666667 | O19: =EXP(-(2*O$9*(N19/1440)*(-G$8))/(Data!B$13^2*LN('B&R'!$J$12))) ->  | Q19: 46.66666667 | R19: =EXP(-(2*R$9*(Q19/1440)*(-G$8))/(Data!B$13^2*LN('B&R'!$J$12))) ->  | T19: 46.66666667 | U19: =EXP(-(2*U$9*(T19/1440)*(-G$8))/(Data!B$13^2*LN('B&R'!J$12))) ->  | W19: 46.66666667 | X19: =EXP(-(2*X$9*(W19/1440)*(-G$8))/(Data!B$13^2*LN('B&R'!$J$12))) ->  | Z19: 46.66666667 | AA19: =EXP(-(2*AA$9*(Z19/1440)*(-G$8))/(Data!B$13^2*LN('B&R'!$J$12))) ->  | AC19: 46.66666667 | AD19: =EXP(-(2*AD$9*(AC19/1440)*(-G$8))/(Data!B$13^2*LN('B&R'!$J$12))) -> 
K20: 40 | L20: =EXP(-(2*L$9*(K20/1440)*(-G$8)/(Data!B$13^2*LN('B&R'!$J$12)))) ->  | N20: 53.33333333 | O20: =EXP(-(2*O$9*(N20/1440)*(-G$8))/(Data!B$13^2*LN('B&R'!$J$12))) ->  | Q20: 53.33333333 | R20: =EXP(-(2*R$9*(Q20/1440)*(-G$8))/(Data!B$13^2*LN('B&R'!$J$12))) ->  | T20: 53.33333333 | U20: =EXP(-(2*U$9*(T20/1440)*(-G$8))/(Data!B$13^2*LN('B&R'!J$12))) ->  | W20: 53.33333333 | X20: =EXP(-(2*X$9*(W20/1440)*(-G$8))/(Data!B$13^2*LN('B&R'!$J$12))) ->  | Z20: 53.33333333 | AA20: =EXP(-(2*AA$9*(Z20/1440)*(-G$8))/(Data!B$13^2*LN('B&R'!$J$12))) ->  | AC20: 53.33333333 | AD20: =EXP(-(2*AD$9*(AC20/1440)*(-G$8))/(Data!B$13^2*LN('B&R'!$J$12))) -> 
K21: 45 | L21: =EXP(-(2*L$9*(K21/1440)*(-G$8)/(Data!B$13^2*LN('B&R'!$J$12)))) ->  | N21: 60 | O21: =EXP(-(2*O$9*(N21/1440)*(-G$8))/(Data!B$13^2*LN('B&R'!$J$12))) ->  | Q21: 60 | R21: =EXP(-(2*R$9*(Q21/1440)*(-G$8))/(Data!B$13^2*LN('B&R'!$J$12))) ->  | T21: 60 | U21: =EXP(-(2*U$9*(T21/1440)*(-G$8))/(Data!B$13^2*LN('B&R'!J$12))) ->  | W21: 60 | X21: =EXP(-(2*X$9*(W21/1440)*(-G$8))/(Data!B$13^2*LN('B&R'!$J$12))) ->  | Z21: 60 | AA21: =EXP(-(2*AA$9*(Z21/1440)*(-G$8))/(Data!B$13^2*LN('B&R'!$J$12))) ->  | AC21: 60 | AD21: =EXP(-(2*AD$9*(AC21/1440)*(-G$8))/(Data!B$13^2*LN('B&R'!$J$12))) -> 
K22: 50 | L22: =EXP(-(2*L$9*(K22/1440)*(-G$8)/(Data!B$13^2*LN('B&R'!$J$12)))) ->  | N22: 66.66666667 | O22: =EXP(-(2*O$9*(N22/1440)*(-G$8))/(Data!B$13^2*LN('B&R'!$J$12))) ->  | Q22: 66.66666667 | R22: =EXP(-(2*R$9*(Q22/1440)*(-G$8))/(Data!B$13^2*LN('B&R'!$J$12))) ->  | T22: 66.66666667 | U22: =EXP(-(2*U$9*(T22/1440)*(-G$8))/(Data!B$13^2*LN('B&R'!J$12))) ->  | W22: 66.66666667 | X22: =EXP(-(2*X$9*(W22/1440)*(-G$8))/(Data!B$13^2*LN('B&R'!$J$12))) ->  | Z22: 66.66666667 | AA22: =EXP(-(2*AA$9*(Z22/1440)*(-G$8))/(Data!B$13^2*LN('B&R'!$J$12))) ->  | AC22: 66.66666667 | AD22: =EXP(-(2*AD$9*(AC22/1440)*(-G$8))/(Data!B$13^2*LN('B&R'!$J$12))) -> 
K23: 55 | L23: =EXP(-(2*L$9*(K23/1440)*(-G$8)/(Data!B$13^2*LN('B&R'!$J$12)))) ->  | N23: 73.33333333 | O23: =EXP(-(2*O$9*(N23/1440)*(-G$8))/(Data!B$13^2*LN('B&R'!$J$12))) ->  | Q23: 73.33333333 | R23: =EXP(-(2*R$9*(Q23/1440)*(-G$8))/(Data!B$13^2*LN('B&R'!$J$12))) ->  | T23: 73.33333333 | U23: =EXP(-(2*U$9*(T23/1440)*(-G$8))/(Data!B$13^2*LN('B&R'!J$12))) ->  | W23: 73.33333333 | X23: =EXP(-(2*X$9*(W23/1440)*(-G$8))/(Data!B$13^2*LN('B&R'!$J$12))) ->  | Z23: 73.33333333 | AA23: =EXP(-(2*AA$9*(Z23/1440)*(-G$8))/(Data!B$13^2*LN('B&R'!$J$12))) ->  | AC23: 73.33333333 | AD23: =EXP(-(2*AD$9*(AC23/1440)*(-G$8))/(Data!B$13^2*LN('B&R'!$J$12))) -> 
K24: 60 | L24: =EXP(-(2*L$9*(K24/1440)*(-G$8)/(Data!B$13^2*LN('B&R'!$J$12)))) ->  | N24: 80 | O24: =EXP(-(2*O$9*(N24/1440)*(-G$8))/(Data!B$13^2*LN('B&R'!$J$12))) ->  | Q24: 80 | R24: =EXP(-(2*R$9*(Q24/1440)*(-G$8))/(Data!B$13^2*LN('B&R'!$J$12))) ->  | T24: 80 | U24: =EXP(-(2*U$9*(T24/1440)*(-G$8))/(Data!B$13^2*LN('B&R'!J$12))) ->  | W24: 80 | X24: =EXP(-(2*X$9*(W24/1440)*(-G$8))/(Data!B$13^2*LN('B&R'!$J$12))) ->  | Z24: 80 | AA24: =EXP(-(2*AA$9*(Z24/1440)*(-G$8))/(Data!B$13^2*LN('B&R'!$J$12))) ->  | AC24: 80 | AD24: =EXP(-(2*AD$9*(AC24/1440)*(-G$8))/(Data!B$13^2*LN('B&R'!$J$12))) -> 
K25: 65 | L25: =EXP(-(2*L$9*(K25/1440)*(-G$8)/(Data!B$13^2*LN('B&R'!$J$12)))) ->  | N25: 86.66666667 | O25: =EXP(-(2*O$9*(N25/1440)*(-G$8))/(Data!B$13^2*LN('B&R'!$J$12))) ->  | Q25: 86.66666667 | R25: =EXP(-(2*R$9*(Q25/1440)*(-G$8))/(Data!B$13^2*LN('B&R'!$J$12))) ->  | T25: 86.66666667 | U25: =EXP(-(2*U$9*(T25/1440)*(-G$8))/(Data!B$13^2*LN('B&R'!J$12))) ->  | W25: 86.66666667 | X25: =EXP(-(2*X$9*(W25/1440)*(-G$8))/(Data!B$13^2*LN('B&R'!$J$12))) ->  | Z25: 86.66666667 | AA25: =EXP(-(2*AA$9*(Z25/1440)*(-G$8))/(Data!B$13^2*LN('B&R'!$J$12))) ->  | AC25: 86.66666667 | AD25: =EXP(-(2*AD$9*(AC25/1440)*(-G$8))/(Data!B$13^2*LN('B&R'!$J$12))) -> 
K26: 70 | L26: =EXP(-(2*L$9*(K26/1440)*(-G$8)/(Data!B$13^2*LN('B&R'!$J$12)))) ->  | N26: 93.33333333 | O26: =EXP(-(2*O$9*(N26/1440)*(-G$8))/(Data!B$13^2*LN('B&R'!$J$12))) ->  | Q26: 93.33333333 | R26: =EXP(-(2*R$9*(Q26/1440)*(-G$8))/(Data!B$13^2*LN('B&R'!$J$12))) ->  | T26: 93.33333333 | U26: =EXP(-(2*U$9*(T26/1440)*(-G$8))/(Data!B$13^2*LN('B&R'!J$12))) ->  | W26: 93.33333333 | X26: =EXP(-(2*X$9*(W26/1440)*(-G$8))/(Data!B$13^2*LN('B&R'!$J$12))) ->  | Z26: 93.33333333 | AA26: =EXP(-(2*AA$9*(Z26/1440)*(-G$8))/(Data!B$13^2*LN('B&R'!$J$12))) ->  | AC26: 93.33333333 | AD26: =EXP(-(2*AD$9*(AC26/1440)*(-G$8))/(Data!B$13^2*LN('B&R'!$J$12))) -> 
K27: 75 | L27: =EXP(-(2*L$9*(K27/1440)*(-G$8)/(Data!B$13^2*LN('B&R'!$J$12)))) ->  | N27: 100 | O27: =EXP(-(2*O$9*(N27/1440)*(-G$8))/(Data!B$13^2*LN('B&R'!$J$12))) ->  | Q27: 100 | R27: =EXP(-(2*R$9*(Q27/1440)*(-G$8))/(Data!B$13^2*LN('B&R'!$J$12))) ->  | T27: 100 | U27: =EXP(-(2*U$9*(T27/1440)*(-G$8))/(Data!B$13^2*LN('B&R'!J$12))) ->  | W27: 100 | X27: =EXP(-(2*X$9*(W27/1440)*(-G$8))/(Data!B$13^2*LN('B&R'!$J$12))) ->  | Z27: 100 | AA27: =EXP(-(2*AA$9*(Z27/1440)*(-G$8))/(Data!B$13^2*LN('B&R'!$J$12))) ->  | AC27: 100 | AD27: =EXP(-(2*AD$9*(AC27/1440)*(-G$8))/(Data!B$13^2*LN('B&R'!$J$12))) -> 
K28: 80 | L28: =EXP(-(2*L$9*(K28/1440)*(-G$8)/(Data!B$13^2*LN('B&R'!$J$12)))) ->  | N28: 106.6666667 | O28: =EXP(-(2*O$9*(N28/1440)*(-G$8))/(Data!B$13^2*LN('B&R'!$J$12))) ->  | Q28: 106.6666667 | R28: =EXP(-(2*R$9*(Q28/1440)*(-G$8))/(Data!B$13^2*LN('B&R'!$J$12))) ->  | T28: 106.6666667 | U28: =EXP(-(2*U$9*(T28/1440)*(-G$8))/(Data!B$13^2*LN('B&R'!J$12))) ->  | W28: 106.6666667 | X28: =EXP(-(2*X$9*(W28/1440)*(-G$8))/(Data!B$13^2*LN('B&R'!$J$12))) ->  | Z28: 106.6666667 | AA28: =EXP(-(2*AA$9*(Z28/1440)*(-G$8))/(Data!B$13^2*LN('B&R'!$J$12))) ->  | AC28: 106.6666667 | AD28: =EXP(-(2*AD$9*(AC28/1440)*(-G$8))/(Data!B$13^2*LN('B&R'!$J$12))) -> 
K29: 85 | L29: =EXP(-(2*L$9*(K29/1440)*(-G$8)/(Data!B$13^2*LN('B&R'!$J$12)))) ->  | N29: 113.3333333 | O29: =EXP(-(2*O$9*(N29/1440)*(-G$8))/(Data!B$13^2*LN('B&R'!$J$12))) ->  | Q29: 113.3333333 | R29: =EXP(-(2*R$9*(Q29/1440)*(-G$8))/(Data!B$13^2*LN('B&R'!$J$12))) ->  | T29: 113.3333333 | U29: =EXP(-(2*U$9*(T29/1440)*(-G$8))/(Data!B$13^2*LN('B&R'!J$12))) ->  | W29: 113.3333333 | X29: =EXP(-(2*X$9*(W29/1440)*(-G$8))/(Data!B$13^2*LN('B&R'!$J$12))) ->  | Z29: 113.3333333 | AA29: =EXP(-(2*AA$9*(Z29/1440)*(-G$8))/(Data!B$13^2*LN('B&R'!$J$12))) ->  | AC29: 113.3333333 | AD29: =EXP(-(2*AD$9*(AC29/1440)*(-G$8))/(Data!B$13^2*LN('B&R'!$J$12))) -> 
K30: 90 | L30: =EXP(-(2*L$9*(K30/1440)*(-G$8)/(Data!B$13^2*LN('B&R'!$J$12)))) ->  | N30: 120 | O30: =EXP(-(2*O$9*(N30/1440)*(-G$8))/(Data!B$13^2*LN('B&R'!$J$12))) ->  | Q30: 120 | R30: =EXP(-(2*R$9*(Q30/1440)*(-G$8))/(Data!B$13^2*LN('B&R'!$J$12))) ->  | T30: 120 | U30: =EXP(-(2*U$9*(T30/1440)*(-G$8))/(Data!B$13^2*LN('B&R'!J$12))) ->  | W30: 120 | X30: =EXP(-(2*X$9*(W30/1440)*(-G$8))/(Data!B$13^2*LN('B&R'!$J$12))) ->  | Z30: 120 | AA30: =EXP(-(2*AA$9*(Z30/1440)*(-G$8))/(Data!B$13^2*LN('B&R'!$J$12))) ->  | AC30: 120 | AD30: =EXP(-(2*AD$9*(AC30/1440)*(-G$8))/(Data!B$13^2*LN('B&R'!$J$12))) -> 
K31: 95 | L31: =EXP(-(2*L$9*(K31/1440)*(-G$8)/(Data!B$13^2*LN('B&R'!$J$12)))) ->  | N31: 126.6666667 | O31: =EXP(-(2*O$9*(N31/1440)*(-G$8))/(Data!B$13^2*LN('B&R'!$J$12))) ->  | Q31: 126.6666667 | R31: =EXP(-(2*R$9*(Q31/1440)*(-G$8))/(Data!B$13^2*LN('B&R'!$J$12))) ->  | T31: 126.6666667 | U31: =EXP(-(2*U$9*(T31/1440)*(-G$8))/(Data!B$13^2*LN('B&R'!J$12))) ->  | W31: 126.6666667 | X31: =EXP(-(2*X$9*(W31/1440)*(-G$8))/(Data!B$13^2*LN('B&R'!$J$12))) ->  | Z31: 126.6666667 | AA31: =EXP(-(2*AA$9*(Z31/1440)*(-G$8))/(Data!B$13^2*LN('B&R'!$J$12))) ->  | AC31: 126.6666667 | AD31: =EXP(-(2*AD$9*(AC31/1440)*(-G$8))/(Data!B$13^2*LN('B&R'!$J$12))) -> 
K32: 100 | L32: =EXP(-(2*L$9*(K32/1440)*(-G$8)/(Data!B$13^2*LN('B&R'!$J$12)))) ->  | N32: 133.3333333 | O32: =EXP(-(2*O$9*(N32/1440)*(-G$8))/(Data!B$13^2*LN('B&R'!$J$12))) ->  | Q32: 133.3333333 | R32: =EXP(-(2*R$9*(Q32/1440)*(-G$8))/(Data!B$13^2*LN('B&R'!$J$12))) ->  | T32: 133.3333333 | U32: =EXP(-(2*U$9*(T32/1440)*(-G$8))/(Data!B$13^2*LN('B&R'!J$12))) ->  | W32: 133.3333333 | X32: =EXP(-(2*X$9*(W32/1440)*(-G$8))/(Data!B$13^2*LN('B&R'!$J$12))) ->  | Z32: 133.3333333 | AA32: =EXP(-(2*AA$9*(Z32/1440)*(-G$8))/(Data!B$13^2*LN('B&R'!$J$12))) ->  | AC32: 133.3333333 | AD32: =EXP(-(2*AD$9*(AC32/1440)*(-G$8))/(Data!B$13^2*LN('B&R'!$J$12))) -> 
K33: 105 | L33: =EXP(-(2*L$9*(K33/1440)*(-G$8)/(Data!B$13^2*LN('B&R'!$J$12)))) ->  | N33: 140 | O33: =EXP(-(2*O$9*(N33/1440)*(-G$8))/(Data!B$13^2*LN('B&R'!$J$12))) ->  | Q33: 140 | R33: =EXP(-(2*R$9*(Q33/1440)*(-G$8))/(Data!B$13^2*LN('B&R'!$J$12))) ->  | T33: 140 | U33: =EXP(-(2*U$9*(T33/1440)*(-G$8))/(Data!B$13^2*LN('B&R'!J$12))) ->  | W33: 140 | X33: =EXP(-(2*X$9*(W33/1440)*(-G$8))/(Data!B$13^2*LN('B&R'!$J$12))) ->  | Z33: 140 | AA33: =EXP(-(2*AA$9*(Z33/1440)*(-G$8))/(Data!B$13^2*LN('B&R'!$J$12))) ->  | AC33: 140 | AD33: =EXP(-(2*AD$9*(AC33/1440)*(-G$8))/(Data!B$13^2*LN('B&R'!$J$12))) -> 
K34: 110 | L34: =EXP(-(2*L$9*(K34/1440)*(-G$8)/(Data!B$13^2*LN('B&R'!$J$12)))) ->  | N34: 146.6666667 | O34: =EXP(-(2*O$9*(N34/1440)*(-G$8))/(Data!B$13^2*LN('B&R'!$J$12))) ->  | Q34: 146.6666667 | R34: =EXP(-(2*R$9*(Q34/1440)*(-G$8))/(Data!B$13^2*LN('B&R'!$J$12))) ->  | T34: 146.6666667 | U34: =EXP(-(2*U$9*(T34/1440)*(-G$8))/(Data!B$13^2*LN('B&R'!J$12))) ->  | W34: 146.6666667 | X34: =EXP(-(2*X$9*(W34/1440)*(-G$8))/(Data!B$13^2*LN('B&R'!$J$12))) ->  | Z34: 146.6666667 | AA34: =EXP(-(2*AA$9*(Z34/1440)*(-G$8))/(Data!B$13^2*LN('B&R'!$J$12))) ->  | AC34: 146.6666667 | AD34: =EXP(-(2*AD$9*(AC34/1440)*(-G$8))/(Data!B$13^2*LN('B&R'!$J$12))) -> 
K35: 115 | L35: =EXP(-(2*L$9*(K35/1440)*(-G$8)/(Data!B$13^2*LN('B&R'!$J$12)))) ->  | N35: 153.3333333 | O35: =EXP(-(2*O$9*(N35/1440)*(-G$8))/(Data!B$13^2*LN('B&R'!$J$12))) ->  | Q35: 153.3333333 | R35: =EXP(-(2*R$9*(Q35/1440)*(-G$8))/(Data!B$13^2*LN('B&R'!$J$12))) ->  | T35: 153.3333333 | U35: =EXP(-(2*U$9*(T35/1440)*(-G$8))/(Data!B$13^2*LN('B&R'!J$12))) ->  | W35: 153.3333333 | X35: =EXP(-(2*X$9*(W35/1440)*(-G$8))/(Data!B$13^2*LN('B&R'!$J$12))) ->  | Z35: 153.3333333 | AA35: =EXP(-(2*AA$9*(Z35/1440)*(-G$8))/(Data!B$13^2*LN('B&R'!$J$12))) ->  | AC35: 153.3333333 | AD35: =EXP(-(2*AD$9*(AC35/1440)*(-G$8))/(Data!B$13^2*LN('B&R'!$J$12))) -> 
K36: 120 | L36: =EXP(-(2*L$9*(K36/1440)*(-G$8)/(Data!B$13^2*LN('B&R'!$J$12)))) ->  | N36: 160 | O36: =EXP(-(2*O$9*(N36/1440)*(-G$8))/(Data!B$13^2*LN('B&R'!$J$12))) ->  | Q36: 160 | R36: =EXP(-(2*R$9*(Q36/1440)*(-G$8))/(Data!B$13^2*LN('B&R'!$J$12))) ->  | T36: 160 | U36: =EXP(-(2*U$9*(T36/1440)*(-G$8))/(Data!B$13^2*LN('B&R'!J$12))) ->  | W36: 160 | X36: =EXP(-(2*X$9*(W36/1440)*(-G$8))/(Data!B$13^2*LN('B&R'!$J$12))) ->  | Z36: 160 | AA36: =EXP(-(2*AA$9*(Z36/1440)*(-G$8))/(Data!B$13^2*LN('B&R'!$J$12))) ->  | AC36: 160 | AD36: =EXP(-(2*AD$9*(AC36/1440)*(-G$8))/(Data!B$13^2*LN('B&R'!$J$12))) -> 
K37: 125 | L37: =EXP(-(2*L$9*(K37/1440)*(-G$8)/(Data!B$13^2*LN('B&R'!$J$12)))) ->  | N37: 166.6666667 | O37: =EXP(-(2*O$9*(N37/1440)*(-G$8))/(Data!B$13^2*LN('B&R'!$J$12))) ->  | Q37: 166.6666667 | R37: =EXP(-(2*R$9*(Q37/1440)*(-G$8))/(Data!B$13^2*LN('B&R'!$J$12))) ->  | T37: 166.6666667 | U37: =EXP(-(2*U$9*(T37/1440)*(-G$8))/(Data!B$13^2*LN('B&R'!J$12))) ->  | W37: 166.6666667 | X37: =EXP(-(2*X$9*(W37/1440)*(-G$8))/(Data!B$13^2*LN('B&R'!$J$12))) ->  | Z37: 166.6666667 | AA37: =EXP(-(2*AA$9*(Z37/1440)*(-G$8))/(Data!B$13^2*LN('B&R'!$J$12))) ->  | AC37: 166.6666667 | AD37: =EXP(-(2*AD$9*(AC37/1440)*(-G$8))/(Data!B$13^2*LN('B&R'!$J$12))) -> 
K38: 130 | L38: =EXP(-(2*L$9*(K38/1440)*(-G$8)/(Data!B$13^2*LN('B&R'!$J$12)))) ->  | N38: 173.3333333 | O38: =EXP(-(2*O$9*(N38/1440)*(-G$8))/(Data!B$13^2*LN('B&R'!$J$12))) ->  | Q38: 173.3333333 | R38: =EXP(-(2*R$9*(Q38/1440)*(-G$8))/(Data!B$13^2*LN('B&R'!$J$12))) ->  | T38: 173.3333333 | U38: =EXP(-(2*U$9*(T38/1440)*(-G$8))/(Data!B$13^2*LN('B&R'!J$12))) ->  | W38: 173.3333333 | X38: =EXP(-(2*X$9*(W38/1440)*(-G$8))/(Data!B$13^2*LN('B&R'!$J$12))) ->  | Z38: 173.3333333 | AA38: =EXP(-(2*AA$9*(Z38/1440)*(-G$8))/(Data!B$13^2*LN('B&R'!$J$12))) ->  | AC38: 173.3333333 | AD38: =EXP(-(2*AD$9*(AC38/1440)*(-G$8))/(Data!B$13^2*LN('B&R'!$J$12))) -> 
K39: 135 | L39: =EXP(-(2*L$9*(K39/1440)*(-G$8)/(Data!B$13^2*LN('B&R'!$J$12)))) ->  | N39: 180 | O39: =EXP(-(2*O$9*(N39/1440)*(-G$8))/(Data!B$13^2*LN('B&R'!$J$12))) ->  | Q39: 180 | R39: =EXP(-(2*R$9*(Q39/1440)*(-G$8))/(Data!B$13^2*LN('B&R'!$J$12))) ->  | T39: 180 | U39: =EXP(-(2*U$9*(T39/1440)*(-G$8))/(Data!B$13^2*LN('B&R'!J$12))) ->  | W39: 180 | X39: =EXP(-(2*X$9*(W39/1440)*(-G$8))/(Data!B$13^2*LN('B&R'!$J$12))) ->  | Z39: 180 | AA39: =EXP(-(2*AA$9*(Z39/1440)*(-G$8))/(Data!B$13^2*LN('B&R'!$J$12))) ->  | AC39: 180 | AD39: =EXP(-(2*AD$9*(AC39/1440)*(-G$8))/(Data!B$13^2*LN('B&R'!$J$12))) -> 
K40: 140 | L40: =EXP(-(2*L$9*(K40/1440)*(-G$8)/(Data!B$13^2*LN('B&R'!$J$12)))) ->  | N40: 186.6666667 | O40: =EXP(-(2*O$9*(N40/1440)*(-G$8))/(Data!B$13^2*LN('B&R'!$J$12))) ->  | Q40: 186.6666667 | R40: =EXP(-(2*R$9*(Q40/1440)*(-G$8))/(Data!B$13^2*LN('B&R'!$J$12))) ->  | T40: 186.6666667 | U40: =EXP(-(2*U$9*(T40/1440)*(-G$8))/(Data!B$13^2*LN('B&R'!J$12))) ->  | W40: 186.6666667 | X40: =EXP(-(2*X$9*(W40/1440)*(-G$8))/(Data!B$13^2*LN('B&R'!$J$12))) ->  | Z40: 186.6666667 | AA40: =EXP(-(2*AA$9*(Z40/1440)*(-G$8))/(Data!B$13^2*LN('B&R'!$J$12))) ->  | AC40: 186.6666667 | AD40: =EXP(-(2*AD$9*(AC40/1440)*(-G$8))/(Data!B$13^2*LN('B&R'!$J$12))) -> 
K41: 145 | L41: =EXP(-(2*L$9*(K41/1440)*(-G$8)/(Data!B$13^2*LN('B&R'!$J$12)))) ->  | N41: 193.3333333 | O41: =EXP(-(2*O$9*(N41/1440)*(-G$8))/(Data!B$13^2*LN('B&R'!$J$12))) ->  | Q41: 193.3333333 | R41: =EXP(-(2*R$9*(Q41/1440)*(-G$8))/(Data!B$13^2*LN('B&R'!$J$12))) ->  | T41: 193.3333333 | U41: =EXP(-(2*U$9*(T41/1440)*(-G$8))/(Data!B$13^2*LN('B&R'!J$12))) ->  | W41: 193.3333333 | X41: =EXP(-(2*X$9*(W41/1440)*(-G$8))/(Data!B$13^2*LN('B&R'!$J$12))) ->  | Z41: 193.3333333 | AA41: =EXP(-(2*AA$9*(Z41/1440)*(-G$8))/(Data!B$13^2*LN('B&R'!$J$12))) ->  | AC41: 193.3333333 | AD41: =EXP(-(2*AD$9*(AC41/1440)*(-G$8))/(Data!B$13^2*LN('B&R'!$J$12))) -> 
K42: =$D$7 -> 150 | L42: =EXP(-(2*L$9*(K42/1440)*(-G$8)/(Data!B$13^2*LN('B&R'!$J$12)))) ->  | N42: =$D$8 -> 200 | O42: =EXP(-(2*O$9*(N42/1440)*(-G$8))/(Data!B$13^2*LN('B&R'!$J$12))) ->  | Q42: =$D$9 -> 200 | R42: =EXP(-(2*R$9*(Q42/1440)*(-G$8))/(Data!B$13^2*LN('B&R'!$J$12))) ->  | T42: =$D$10 -> 200 | U42: =EXP(-(2*U$9*(T42/1440)*(-G$8))/(Data!B$13^2*LN('B&R'!J$12))) ->  | W42: =$D$11 -> 200 | X42: =EXP(-(2*X$9*(W42/1440)*(-G$8))/(Data!B$13^2*LN('B&R'!$J$12))) ->  | Z42: =$D$12 -> 200 | AA42: =EXP(-(2*AA$9*(Z42/1440)*(-G$8))/(Data!B$13^2*LN('B&R'!$J$12))) ->  | AC42: =$D$13 -> 200 | AD42: =EXP(-(2*AD$9*(AC42/1440)*(-G$8))/(Data!B$13^2*LN('B&R'!$J$12))) -> 
A49: Field Data
A51: Record Data in Fields Below | G51: Calculate and Plot Fields Below
A52: Well ID | C52: Well Dia. (ft) | E52: Total Depth (ft)
A53: Notes | B53: Date | C53: Time | D53: Elapsed Time (min) | E53: Depth To Product (TOC) | F53: Depth to Water (TOC) | G53: Product Thickness (ft) | H53: Drawdown (s) DTP-DTP(initial) (ft) | I53: Normalized Drawdown (s/sinitial)
A54: Initial Measurement
A55: Stopped Bailing/Start Gauging | D55: 0
A56: Well Starts recovering

Sheet Confined (hidden)
A1: Confined LNAPL Model: | E1: Well Designation: | G1: =IF(Data!B1 > 0,Data!B1,"") -> MW16
E2: Date: | G2: =IF(Data!B2 > 0,Data!B2,"") -> 2021-11-09
A5: Depth to base of confining bed (ft bgs) [from boring log]: | B5: 24.27
A6: Constant LNAPL discharge to well (ft3/d): | B6: 3.53
L9: =Data!N25 -> 1.21 | M9: =B6 -> 3.53
L10: =B14 -> 1.633076923 | M10: =M9 -> 3.53
A11: Depth to top of screen (ft bgs): | B11: =Data!B10 -> 30.7 | L11: 0 | M11: 0
A12: Corrected water table elevation (ft bgs): | B12: =Data!I22 -> 35.4214
A13: Limiting effective LNAPL thickness in well, bnW (ft): | B13: =IF(B5>B11,(B5-B12)/Data!B9,(B11-B12)/Data!B9) -> -6.053076923
A14: Limiting effective LNAPL drawdown, snW (ft): | B14: =(1-Data!B9)*(Confined!B15-Confined!B13) -> 1.633076923
A15: Initial LNAPL thickness, bnR (ft): | B15: =Data!O22 -> 1.37
A16: Radius of influence ratio (from Bouwer and Rice), R/rw: | B16: ='B&R'!J12 -> 6.740515896
A19: LNAPL Transmissivity, Tn (ft2/d): | B19: =B6*LN(B16)/(2*PI()*(1-Data!B9)*(B15-B13)) -> 0.6564439138

Sheet Perched (hidden)
A1: Perched LNAPL Model: | E1: Well Designation: | G1: =IF(Data!B1 > 0,Data!B1,"") -> MW16
E2: Date: | G2: =IF(Data!B2 > 0,Data!B2,"") -> 2021-11-09
A5: Depth to top of perching layer, DZ12 (ft bgs): | B5: 22.63
A6: Constant LNAPL discharge to well (ft3/d): | B6: 3.53
L9: =Data!N25 -> 1.21 | M9: =B6 -> 3.53
L10: =B13 -> -12.49 | M10: =M9 -> 3.53
A11: Depth to top of screen (ft bgs): | B11: =Data!B10 -> 30.7 | L11: 0 | M11: 0
A12: Corrected water table elevation (ft bgs): | B12: =Data!I22 -> 35.4214
A13: Limiting effective LNAPL drawdown, snW (ft): | B13: =B5-B14 -> -12.49
A14: Initial depth to product (DTP0) (ft bgs): | B14: =Data!E22 -> 35.12
A15: Radius of influence ratio (from Bouwer and Rice), R/rw: | B15: ='B&R'!J12 -> 6.740515896
A18: LNAPL Transmissivity, Tn (ft2/d): | B18: =B6*LN(B15)/(2*PI()*B13) -> -0.08583053698

Sheet Flowchart
